{"text_format":"1","workbook":"xlsx","n_sheets":2,"sheets":["Vocabulary","TestYourself"],"not_rendered":{"charts":0,"images":3,"macros":1,"external_links":0,"defined_names":2,"comments":0,"pivot_tables":0},"unopened":[],"bounds":{"document_bytes":16777216,"sheet_cells":100000,"rows_first":2000,"rows_last":500,"rows_between":2000,"halvings":0,"cell_chars":16384,"cell_head_chars":4096},"cells_cut":0,"cells_raw":0,"read":"whole","date_system":"1900"}

{"sheet":"Vocabulary","index":0,"n_rows":710,"n_cols":9,"rows_kept":710,"cut":false,"hidden":false,"merged":[[2,2,3,8]]}
[]
[]
[null,null,"המאגר המלא"]
[]
[]
[null,"מילים מוכרות:",{"$f":"COUNTIF(Table[עזר2],\"=TRUE\")","v":0}]
[null,"מילים שאינן מוכרות:",{"$f":"COUNTIF(Table[עזר2],\"=FALSE\")+COUNTBLANK(Table[עזר2])","v":700}]
[null,"לחיפוש מילה לחצו Ctrl+F"]
[]
[null,null,"רמה","עזר2","סמנו מילים שאתם מכירים","מילה","פירוש","שימוש במשפט","הערות שלי"]
[null,null,2,false,null,"אבד עליו הכלח","התיישן, עבר זמנו","המחשב שאתה עובד איתו נקנה לפני יותר מעשר שנים, משמע - אבד עליו הכלח."]
[null,null,3,false,null,"אבוס","כלי להאכלת בהמות","הנחתי את החציר באבוס, כדי שהסוסים יאכלו ממנו."]
[null,null,2,false,null,"אבוקה","לפיד","אוהדי קבוצת הכדורגל הדליקו אבוקות במגרש בניגוד לחוק."]
[null,null,3,false,null,"אבחה","א. תנופה ב. טבח, חורבן","באבחת חרב אחת הוא חיסל את אויבו."]
[null,null,2,false,null,"אבטיפוס","מקור","זהו אבטיפוס של המוצר, אך מאז הוא עבר המון שינויים."]
[null,null,1,false,null,"אבן משחזת","אבן להשחזת (חידוד) כלי חיתוך","דניאל השתמש באבן משחזת משום שלהב הסכין שלו הייתה קהה מדי."]
[null,null,2,false,null,"אבן נגף","מכשול, תקלה","חוסר הביטחון שלו היה לו אבן נגף  בניסיונותיו למצוא בת זוג."]
[null,null,3,false,null,"אברה","נוצה גדולה בכנף העוף או בזנבו","אברות התעופה יוצרות יחדיו את כנפי הציפור."]
[null,null,2,false,null,"אגד","פלסטר המשמש לחבישה","גלית חבשה את ידו של דוד באמצעות אגד."]
[null,null,2,false,null,"אגל ","רסיס, טיפה","הוא התאמץ כל-כך עד שאגלי זיעה הופיעו על מצחו."]
[null,null,2,false,null,"אדווה","גל קטן","היא חצתה את הבריכה ויצרה אדוות על פני המים."]
[null,null,1,false,null,"אדנית","עציץ מוארך בצורת מלבן","ירון שתל פרחים באדניות לקישוט המרפסת שלו."]
[null,null,1,false,null,"אובד עצות","אינו יודע מה לעשות","הוא לא הצליח למצוא אף פתרון למשבר ולכן היה אובד עצות."]
[null,null,2,false,null,"אובניים","מכשיר בצורת גלגל המשמש קדרים להכנת כלי חרס","ניצה הכינה כדי חרס יפהפיים בעזרת האבניים."]
[null,null,2,false,null,"אוושה","רעש קל, רשרוש","בחדר שררה דממה למעט אוושה קלה מהרוח. "]
[null,null,2,false,null,"אוזן ערלה","אטימות","הוא נתקל באוזן ערלה כשניסה להסביר את טענותיו לועדה, ואיש לא בא לקראתו."]
[null,null,1,false,null,"אומנם","אכן, באמת","היא הבטיחה לעמוד בתנאי ההלוואה, ואומנם שילמה את הסכום המבוקש מדי חודש ללא דיחוי."]
[null,null,1,false,null,"אומצה","סטייק","על המנגל נהוג לצלות אומצות, קציצות בשר וחצילים."]
[null,null,2,false,null,"אורחת גמלים","שיירת גמלים","במהלך החופשה במדבר נתקלנו באורחת גמלים ארוכה ומרשימה."]
[null,null,1,false,null,"אזמל","כלי פלדה שטוח, ארוך וחד, המשמש לפיסול או חריתה. אזמל מנתחים הוא סכין מנתחים.","הפסל סיתת את יצירתו החדשה באמצעות אזמל."]
[null,null,1,false,null,"אחו","שטח טבעי המכוסה עשב למרעה","האיילים הסתובבו בחופשיות באחו הירוק."]
[null,null,1,false,null,"אחוז אימה","מפחד מאוד","הייתי אחוז אימה למראה הסערה המאיימת שהתקרבה אלינו במהירות."]
[null,null,1,false,null,"אט","לאט","אט-אט התבהרו השמיים והשמש הגיחה מבין העננים."]
[null,null,2,false,null,"איחה","חיבר (קרעים או חתיכות) זה לזה","מנהיג הקהילה איחה את הקרעים בין המשפחות."]
[null,null,2,false,null,"איכף","שם אוכף","הרוכב איכף את סוסו לפני שיצא למרוץ."]
[null,null,1,false,null,"אילולא","אילו לא","אילולא הקשבת לי, היית עכשיו בצרה רצינית."]
[null,null,1,false,null,"אילן","עץ נטוע","בט\"ו בשבט, חג האילנות, נוטע כל תלמיד אילן ביער הקרוב לביתו."]
[null,null,2,false,null,"איתן","חזק, יציב","הוא עמד איתן למול ההאשמות הכבדות נגדו, לא הייתה לא כוונה לוותר."]
[null,null,2,false,null,"אלומה","אגודת שיבולים","החדר בקיבוץ קושט באלומת שיבולים לכבוד חג השבועות."]
[null,null,3,false,null,"אליבא ד","לדעתו של, לפי","אליבא דחז\"ל, הסיפור המקראי מורכב יותר ממה שנהוג לחשוב."]
[null,null,3,false,null,"אללי","מילת קריאה להבעת צער","אללי! איזה אסון פקד אותנו!"]
[null,null,2,false,null,"אלמוני","אדם לא מוכר","אדם אלמוני ביקש להעביר סכום כסף גדול בעילום שם לנזקקים."]
[null,null,1,false,null,"אלמלא","אילו לא ","אלמלא הקשבת לי, היית עכשיו בצרה רצינית."]
[null,null,1,false,null,"אלפביתי","המסודר בסדר הא\"ב ","קל למצוא את תיקי הלקוחות משום שהם מסודרים בסדר אלפביתי."]
[null,null,2,false,null,"אמד","העריך","השמאי אמד את הנזקים במאות אלפי שקלים."]
[null,null,3,false,null,"אמודאי","צוללן","האמודאים צוללים למעמקי הים ונתקלים ביצורים ימיים מופלאים."]
[null,null,2,false,null,"אמיר","צמרת העץ","מן השורשים ועד האמיר, העץ היה מכוסה נגעים."]
[null,null,1,false,null,"אמפתיה","רֶגש של הזדַהות עִם אחֵר","הגננת חשה אמפתיה כלפי הפעוט שקיבל מכה ברגלו."]
[null,null,2,false,null,"אמת מים","תעלה להובלת מים","אמות המים של קיסריה הובילו מים לעיר בעת העתיקה."]
[null,null,3,false,null,"אמתלה","תירוץ","הוא התחמק מהפגישה באמתלה של חולי."]
[null,null,2,false,null,"אנוס","מוכרח, נאלץ","הוא היה אנוס להסכים לחוזה שהוגש לו, לא הייתה לו שום ברירה."]
[null,null,1,false,null,"אסם","מבנה לאחסון תבואה","אכסנתי את כל החיטה שנקצרה באסם."]
[null,null,3,false,null,"אספלנית","פלסטר","אימו הניחה אספלנית על השריטה באצבעו."]
[null,null,1,false,null,"אף על פי כן","למרות זאת","התחזית צפתה גשמים רבים, אף על פי כן מזג האוויר היה נעים למדי."]
[null,null,2,false,null,"אפרכסת","החלק החיצוני של האוזן, (בהשאלה: החלק בטלפון שמקרבים לאוזן)","צינור השמיעה מתחיל באפרכסת ומסתיים באוזן התיכונה."]
[null,null,2,false,null,"אצבעון","כיפת מתכת ששמים על האצבע להגנה מדקירות המחט בשעת התפירה","התופרת משתמשת באצבעון כדי לא להידקר בעת התפירה."]
[null,null,3,false,null,"אצטבה","מדף","הנחתי את הספרים על האצטבה שבסלון."]
[null,null,3,false,null,"אצעדה","צמיד","היא קיבלה במתנה אצעדה יפה שקישטה את פרק כף ידה בחן."]
[null,null,2,false,null,"אצר","אסף, שמר","הוא אוצר בקרבו סודות כמוסים ביותר."]
[null,null,2,false,null,"אקרן","מסך שמקרינים עליו ","הסרט עלה על האקרנים בכל רחבי הארץ."]
[null,null,2,false,null,"ארך אפיים","אדם סבלני","שמואל הוא אדם ארך אפיים, תמיד יש לו סבלנות לכולם."]
[null,null,3,false,null,"ארכני","(1) ארוך מדי (2) דק, ארוך, צנום בצורה גמלונית.","(1) הכתיבה שלו ארכנית ומשעממת, יש בה הרבה יותר מדי מידע. (2) המראה שלו היה ארכני וחיוור והוא בלט בקהל."]
[null,null,1,false,null,"ארעיות","תכונה המאפיינת דבר זמני ולא קבוע","הבדואים המסורתיים חיים במבנים ארעיים ומעתיקים את מקום מגוריהם מדי כמה זמן."]
[null,null,2,false,null,"את","כלי חפירה דומה למעדר","טובה השתמשה באת חפירה כדי לחפור בור באדמה."]
[null,null,3,false,null,"אתרע מזלו","היה לו מזל רע","הוא רצה להגיע בזמן, אך אתרע מזלו והוא נקלע לפקק תנועה ארוך ביותר."]
[null,null,2,false,null,"בְּנָקֵל","בקלות, פשוט וקל","הוא פתר את הבעיה בנקל, ללא כל קושי."]
[null,null,3,false,null,"בִּמְשׂוּרָה","במידה מצומצמת","מזוג לי בבקשה חלב במשורה, איני אוהבת הרבה חלב בתה שלי."]
[null,null,3,false,null,"בָּלּן","עובד בבית מרחץ","תפקידו של הבלן לדאוג לניקיון בית המרחץ, להסקת התנורים המחממים את המים ולטפל במתרחצים."]
[null,null,3,false,null,"בָּרא","פינה שטח ע\"י עקירת העצים שבו","הטרקטורים הכבדים בראו את היער כדי שניתן יהיה להקים בשטח שכונת מגורים חדשה."]
[null,null,2,false,null,"בּוֹש","מתבייש","אני בוש ונכלם למול ההתנהגות חסרת הנימוס הזו."]
[null,null,2,false,null,"בּוּר  ","חסר השכלה","הוא בור בתחום ההסטוריה של ארץ ישראל - הוא אינו מכיר אותה כלל."]
[null,null,2,false,null,"בא בימים","קשיש, זקן","האיש בא בימים, נותרו לו רק שנים ספורות לחיות."]
[null,null,1,false,null,"בא על פתרונו","נפתר","העניין בא על פתרונו כשכל הצדדים הסכימו על הפשרה שניסחה המגשרת."]
[null,null,1,false,null,"בא על שכרו","תוגמל","הוא עבד קשה מאוד ובא על שכרו לבסוף כשקיבל אות הוקרה מהמפעל."]
[null,null,2,false,null,"באו בדברים","נשאו ונתנו, דיברו","הם באו בדברים עד שהגיעו להסכמה."]
[null,null,2,false,null,"בגין","בגלל","החשבון נסגר בגין חוסר פעילות."]
[null,null,1,false,null,"בגפו","לבדו","הוא חי בגפו ואינו רוצה לחלוק את חייו עם איש."]
[null,null,2,false,null,"בדימוס","לשעבר, שפרש מתפקידו, בגמלאות","הרמטכ\"ל בדימוס הביע תמיכה במחליפו בתפקיד."]
[null,null,1,false,null,"בהול","דחוף ביותר","אני צריכה לדבר איתך באופן בהול, העניין אינו סובל דיחוי."]
[null,null,3,false,null,"בוסס","הלך לאט, בצעדים כבדים","הוא בוסס בשלג עד שהגיע סוף סוף אל ביתו."]
[null,null,3,false,null,"בושש","התעכב","החורף בושש לבוא השנה - כבר נובמבר ועדיין חמים בערבים."]
[null,null,3,false,null,"בזעיר אנפין","בצורה מוּקטנת","מדינת ישראל מוצגת בזעיר אנפין ב\"ישראל הקטנה\" שבלטרון."]
[null,null,1,false,null,"בטנה","בד המצפה את החלק הפנימי של הבגד","הבטנה של השמלה הזו מציקה לי, הבד שלה אינו נעים למגע."]
[null,null,2,false,null,"ביאור","פירוש, הסבר","במילון זה מופיעים ביאורים לכל המילים בשפה העברית."]
[null,null,1,false,null,"ביות","הפיכת חיית בר לחיית בית ","תהליך ביות הכלבים החל לפני יותר מ-100,000 שנים."]
[null,null,2,false,null,"בייל","מדביק בול דואר","הוא בייל את המעטפה ושלח אותה בדואר."]
[null,null,3,false,null,"בין המצרים","בצרה , במצוקה","הוא החליט להתוודות על מצוקתו הקשה לאחר שבא בין המצרים."]
[null,null,3,false,null,"בין השמשות","לפנות ערב, בין שקיעת החמה לעליית הירח","אני נהנית לשבת במרפסת בין השמשות - השמש אינה חזקה מדי אך עדיין יש אור חמים."]
[null,null,2,false,null,"ביעף","במהירות, בחיפזון","היום הזה עבר ביעף, הוא חלף כה מהר שלא הספקתי לסיים את כל מטלותיי."]
[null,null,3,false,null,"בירוא","פינוי שטח ע\"י עקירת עצים","בירוא היערות בברזיל פוגע קשות בכדור הארץ."]
[null,null,2,false,null,"בית בד","מקום שבו מייצרים שמן מזיתים","ערכנו סיור בבית הבד ולבסוף קנינו שמן זית בעל ארומה מיוחדת."]
[null,null,2,false,null,"בית הנבחרים","מושב נבחרי העם המחליט על חוקי המדינה במשטר דמוקרטי, פרלמנט","בבית הנבחרים מתקבלות החלטות הרות גורל לגבי עתיד המדינה."]
[null,null,2,false,null,"בית מרזח","מסבאה, בר","הם בילו ערב מהנה בבית המרזח שבסופו חזרו שיכורים הביתה."]
[null,null,1,false,null,"בכי תמרורים","בכי גדול","הוא בכה בכי תמרורים ולא נרגע עד שאימו הגיעה לאסוף אותו."]
[null,null,2,false,null,"בכליון עיניים","בגעגוע, בקוצר רוח","חיכיתי בכליון עיניים להופעה של מדונה בפארק הירקון."]
[null,null,2,false,null,"בכר","גמל צעיר","כשטיילנו במדבר יהודה ראינו בכר ואת אימו הנאקה ואביו הגמל."]
[null,null,2,false,null,"בלשן","חוקר שפה","בלשנים מתעדים שפות לא מוכרות מאזורים נידחים ברחבי העולם."]
[null,null,1,false,null,"במפגיע"," בנחישות, באסרטיביות, בתקיפות","הקהל נדרש במפגיע לעזוב את המקום."]
[null,null,1,false,null,"בן אלמוות","אדם שאינו בן תמותה","נתגלתה מדוזה בת אלמוות - כשהיא מזדקנת היא יכולה להחזיר את גופה למצבו ההתחלתי ולהמשיך לחיות."]
[null,null,2,false,null,"בן בליעל","רשע, נוכל","האדם הזה הוא בן בליעל, אל תאמין לשום דבר שהוא אומר!"]
[null,null,2,false,null,"בן לוויה","אדם המשמש כמלווה קבוע למישהו","לעיוור היה בן לוויה שהגיע איתו לכל מקום והורה לו את הדרך."]
[null,null,2,false,null,"בן תשחורת","צעיר","בני התשחורת יצאו לבילוי לילי עד שעות הבוקר המוקדמות."]
[null,null,3,false,null,"בעיניים כלות","בציפייה רבה המלווה בתחושת תסכול ואכזבה","חיכיתי בעיניים כלות למנה שהזמנתי במסעדה, אך זו לא הגיעה."]
[null,null,1,false,null,"בעל תושיה","מי שיודע לפתור בעיות ולצאת ממצבים קשים","הוא אדם בעל תושיה, לעולם אינו מוותר כשנקלע לצרה."]
[null,null,1,false,null,"בעליל","בבֵירור, בלי סָפק","הסימנים מעידים שהוא אינו כשיר בעליל לטפל בפעוט."]
[null,null,2,false,null,"בעתה","פחד גדול","חשתי בעתה למול השודד שהתקרב אליי והתעלפתי מיד."]
[null,null,1,false,null,"בפרהסיה","בגלוי","איני מתכוונת לריב איתך בפרהסיה, אם את רוצה להתעמת איתי עשי זאת כשאנחנו לבדנו."]
[null,null,1,false,null,"בצבץ","התגלה קצת, הציץ","מאחורי השיח בצבץ לו קיפוד קטן."]
[null,null,2,false,null,"בצר","קטף ענבים","הוא בצר ענבים משובחים בכרם."]
[null,null,1,false,null,"בר-חלוף","זמני","העניין הזה בר-חלוף, מחר כולם ידברו על משהו אחר."]
[null,null,2,false,null,"בר-כיבוש","משהו שאפשר לרסן","הרגש שלי אינו בר-כיבוש, איני מצליח להתעלם ממנו."]
[null,null,2,false,null,"בר-מינן","מת","האדם הזה בר-מינן, הוא נפטר אמש."]
[null,null,1,false,null,"בר-שפיטה","אדם שניתן לשפוט אותו","בית המשפט קבע כי החשוד בר-שפיטה, על אף שזה טען לאי-שפיות."]
[null,null,1,false,null,"בר-תוקף","שנמצא בתוקפו, תקף","הכלל אינו בר-תוקף עוד, הוא הוצא מהתקנון בשנה שעברה."]
[null,null,2,false,null,"בריש גלי","בגָלוי, בפרהסיה","היא צעקה בריש גלי שהיא אוהבת אותו ואינה יכולה לחיות בלעדיו."]
[null,null,2,false,null,"ברם","אבל","העבודה הייתה קשה ומאתגרת, ברם שאבתי ממנה סיפוק."]
[null,null,2,false,null,"ברר","מיין ואז בחר","צריך לברור מבין כל המתמודדים לתפקיד את המתאים ביותר."]
[null,null,2,false,null,"בשוגג","לא בכוונה, בטעות","קראתי לו בשם אחר בשוגג והוא נעלב מאוד."]
[null,null,2,false,null,"גֵּז  ","תהליך גזיזת הצמר","בשעת הגז ניכר שהכבשים חשות אי נוחות מסוימת."]
[null,null,2,false,null,"גַּבָּן  ","בעל מקצוע העוסק בייצור גבינה","הגבן הכין גבינות טעימות ומיוחדות."]
[null,null,2,false,null,"גאה","עולה (בעיקר פני הים ומים של נהר)","המים בים התיכון נוטים לגאות בסנטימטרים ספורים בלבד. "]
[null,null,2,false,null,"גדד","קטף תמרים","נסענו לגדוד תמרים בצפון הארץ."]
[null,null,2,false,null,"גהר","רכן, התכופף","המתאבק גהר על יריבו ובמכה אחת הכניע אותו."]
[null,null,3,false,null,"גוּר!","פחד! היזהר! (ציווי)","גור לך! הסכנות במקום זה רבות."]
[null,null,2,false,null,"גולה","מגורש מארצו לארץ אחרת, נודד לארץ אחרת","הגולים הגיעו חסרי כול לביתם החדש."]
[null,null,2,false,null,"גזר","החלטה סופית. קיצור של גזר דין.","הוא חשב רבות על העניין לבסוף הגיע לגזר שהניח את דעתו."]
[null,null,1,false,null,"גזרה","פקוּדה או חוֹק שיֵש בהם כדי להכביד או לפגוע בזכוּיות","גזרת השליט הייתה קשה למיעוטים שחיו בממלכה."]
[null,null,2,false,null,"גיא","עמק צר ועמוק בין שני הרים","הרועה הוליך את הכבשים בגיא הצר, ולבסוף עלה איתן אל ההר."]
[null,null,2,false,null,"גיבב","הניח דברים בערימה בלי סדר","הוא גיבב את הצעצועים של ביתו בחדר המשחקים."]
[null,null,1,false,null,"גיל","שמחה","הן צהלו בגיל לשמע החדשות הטובות."]
[null,null,2,false,null,"גילה את אוזנו","סיפר לו סוד","דוד גילה את אוזנו של יונתן חברו לעבודה, הוא סיפר לו שהוא מתכוון לעזוב."]
[null,null,2,false,null,"גילופין","שכרות (קלה)","רשיונו נשלל כשנתפס נוהג בגילופין."]
[null,null,2,false,null,"גלב","ספר (מקצוע)","דנית ביקשה מהגלב תספורת קארה אופנתית."]
[null,null,2,false,null,"גמלוני","מגודל, מגושם","הוא אדם גמלוני למדי, תמיד נראה גדול מדי למידות החדר."]
[null,null,2,false,null,"גמר אומר","החליט","הוא גמר אומר בליבו לסיים את המטלה עד סוף החודש."]
[null,null,2,false,null,"גמר עליו את ההלל","שיבח","המנהל גמר את ההלל על דניאל, הוא הרעיף עליו מחמאות רבות."]
[null,null,2,false,null,"גנזך","ארכיון","תייקתי את המסמכים בגנזך לאחר שסיימתי לטפל בלקוחות."]
[null,null,2,false,null,"גער","נזף","המורה נאלצה לגעור במיכל מכיוון שלא עשתה את שיעורי הבית."]
[null,null,1,false,null,"גץ","ניצוץ","עלו גיצים רבים מהמדורה."]
[null,null,2,false,null,"גרגרן","אדם הלהוט אחר אוכל, זללן, רעבתן","אליהו הוא בחור גרגרן - הוא אינו מפסיק לאכול כל היום."]
[null,null,1,false,null,"גשם זלעפות","גשם חזק מאוד, גשם כבד וממושך","יורד גשם זלעפות בחוץ, גם אם תיקח איתך מטריה אתה עלול להרטב לגמרי."]
[null,null,2,false,null,"דָּלַק   ","רדף","השוטר דלק אחרי הפושע ולבסוף השיג אותו."]
[null,null,2,false,null,"דּוּמָם   ","בדממה, בשקט רב","הוא ישב דומם ונהנה מהשקט ששרר."]
[null,null,1,false,null,"דגה","כלל הדגים","הדגה בים התיכון הולכת ומתמעטת לאור הדיג הנרחב באזור."]
[null,null,2,false,null,"דובב","שכנע אדם אחר לדבר","הוא דובב את החשוד והוציא ממנו הודאה."]
[null,null,2,false,null,"דיאלקט","להג, ניב, צורה נבדלת של שפה כלשהי","הדיאלקט של דרום איטליה שונה מאוד מזה השל הצפון, עד כדי חוסר הבנה בין שני דוברים משני האזורים."]
[null,null,2,false,null,"דידה","הלך בקפיצות קלות, הלך בצעדים לא בטוחים","לאחר שנפצע ברגלו הוא דידה במשך זמן רב."]
[null,null,2,false,null,"דיוקן","ציור או פסל של פני אדם","הדיוקן שהוא צייר היה מדויק להפליא - אפשר היה לזהות את הדמות בקלות רבה."]
[null,null,3,false,null,"דיותה","קסת, כלי לדיו","הוא טבל את עט הנוצה בדיותה והמשיך בכתיבה."]
[null,null,1,false,null,"דממת מוות","שקט גמור","שררה בחדר דממת מוות, לא נשמע אף קול."]
[null,null,2,false,null,"דמעות תנין","צער מזויף","דמעותיו הן דמעות תנין, העניין אינו מעניין אותו כהוא זה."]
[null,null,2,false,null,"דן לכף זכות","שופט אדם או סיטואציה בצורה חיובית","אני מעדיפה לדון אותו לכף זכות כל עוד איני בטוחה שההאשמות נגדו נכונות."]
[null,null,1,false,null,"דעתן","אדם שאינו חושש להביע את דעותיו והשקפותיו","הוא אדם דעתן, יש לו מה להגיד בכל נושא."]
[null,null,2,false,null,"דרך חתחתים","דרך זרועה מכשולים","עברתי דרך חתחתים עד שהגעתי למעמדי הרם בחברה."]
[null,null,2,false,null,"הִמְרָה","סרב פקודה, לא ציית","אסרתי עליו להדליק את המחשב, אך הוא המרה את פי ושיחק במחשב בכל זאת."]
[null,null,2,false,null,"הִתְרָה","הזהיר","השופט התרה בנאשם לא לפשוע שוב."]
[null,null,2,false,null,"הֶעֱלָה חֶרֶס בְּיָדוֹ","לא הצליח במאמציו","הוא ניסה להגיע לליבה שוב ושוב אך בכל פעם העלה חרס בידו."]
[null,null,2,false,null,"הַשָּׂגָה   ","ביקורת, טענה, תפיסה שכלית","אם יש לכם השגות לגבי התוכנית אתם יכולים להגיש ערעור."]
[null,null,2,false,null,"האמיר","עלה","המחירים בשנה האחרונה האמירו עד מאוד, יוקר המחייה הפך בלתי נסבל."]
[null,null,1,false,null,"הביס","ניצח ב","הוא הביס את יריבו בקלות יחסית, לאחר חמש דקות הוא הוכרז כמנצח בקרב."]
[null,null,2,false,null,"הבליח","הבהב, נצנץ","אורות הכפר הבליחו באפלה."]
[null,null,3,false,null,"הבריך","הוריד לברכיים (את הגמל)","המדריך הבריך את הגמל והציע לנו לעלות על דבשתו."]
[null,null,2,false,null,"הגה","צליל","שקט! איני רוצה לשמוע הגה."]
[null,null,1,false,null,"הגיח","הופיע פתאום","מתוך האפלה הגיחה דמות אדם מסתורי."]
[null,null,2,false,null,"הגיף","סגר (חלון, תריס וכו')","הגיפי בבקשה את התריסים, האור גורם לי למיגרנה."]
[null,null,2,false,null,"הדום","שרפרף נמוך ששמים עליו את הרגליים","הוא הניח רגליו על ההדום ונשען אחורנית על הכיסא."]
[null,null,2,false,null,"הדיוט","אינו בקיא בתחום מסוים","הוא ממש הדיוט בכל מה שקשור לספרות מדרנית, שכן מעולם לא למד את הנושא."]
[null,null,2,false,null,"הדיח","ניסה לגרום למישהו לפשוע","ניסיתי להדיח את המזכירה לגנוב בעבורי מסמכים."]
[null,null,2,false,null,"הדיף","הפיץ (ריח)","קניתי בושם שמדיף ריח נהדר."]
[null,null,2,false,null,"הוכיח","(1) הראה שמשהו נכון (2) נזף, הטיף מוסר","(1) הצלחתי להוכיח ששני המשולשים חופפים.  (2) הוא הוכיח אותי על מעשיי, ואני הרגשתי בושה"]
[null,null,2,false,null,"הולאם","רכוש שנהפך מרכוש פרטי לרכוש לאומי","שטחי האדמה שהיו בבעלותו של רונן הולאמו על ידי המדינה וכעת הם שייכים לה."]
[null,null,2,false,null,"הונה","רימה, הטעה","האדם הזה הונה מאות קשישים והוציא מהם כספים רבים במרמה."]
[null,null,3,false,null,"הועם","נעשה עמום, איבד את זהרו","האולם הנוצץ הועם בסוף האירוע ואיבד מיוקרתו."]
[null,null,1,false,null,"הוצת","הועלה באש, הודלק","גורמים בכירים טוענים כי השריפה לא הייתה טבעית, אלא שהיער הוצת על ידי גורם עוין."]
[null,null,3,false,null,"הושם לאל","בוטל","האירוע הושם לאל בעקבות תחזית מזג האוויר."]
[null,null,3,false,null,"הזאה","התזה, הזלפה","הזאת נוזלים על עלי הפרחים מסייעת להם לגדול."]
[null,null,2,false,null,"הזים","הפריך, סתר","הוא הזים את דברי העד והוכיח כי העד משקר."]
[null,null,3,false,null,"הטיל חטטו","הפחיד","המלך הטיל חתתו על כל נתיניו, כולם פחדו ממנו."]
[null,null,1,false,null,"הטיל עליו מורא","הפחיד אותו","תוכנית העבודה הטילה עליו מורא, הוא לא ידע כיצד יעמוד בקשיים הצפויים לו."]
[null,null,2,false,null,"היגר","אדם שיצא מארצו והשתקע בארץ אחרת","עולים רבים מברית המועצות לא הסתדרו בישראל והיגרו לקנדה."]
[null,null,2,false,null,"היה לו לרועץ","הכשיל אותו, צרה","הוא אומנם היה מוכשר מאוד, אך היהירות שלו הייתה לו לרועץ כשחיפש עבודה."]
[null,null,2,false,null,"היסה","השתיק","המורה היסה את התלמיד משום שהוא פטפט ללא הרף."]
[null,null,2,false,null,"היקוות","היאספות של נוזלים","מי תהום הם תוצר של היקוות מי גשמים במעמקי האדמה. "]
[null,null,2,false,null,"הך!","הרבץ! (ציווי)","הך בתוף! הכה בו בעוצמה!"]
[null,null,3,false,null,"הכביד לבו (של מישהו)","גרם למישהו להתעקש","אלוהים הכביד את ליבו של פרעה, הוא גרם לו לסרב לבקשתו של משה לשחרר את היהודים ממצרים."]
[null,null,2,false,null,"הכביר","הרבה (בעיקר מילים שלא לצורך)","אל תכביר במילים - עדיף לומר פחות ולעשות יותר."]
[null,null,1,false,null,"הכחיש","כפר בטענה, לא הודה","יוסי ממשיך להכחיש את ההאשמות נגדו וטוען כי הוא חף מפשע."]
[null,null,3,false,null,"הכמין","החביא, הסתיר","אורי הכמין דברי מאכל שונים לאורך מסלול הריצה כדי שיוכל לקבל מקור אנרגיה בזמן המרוץ הארוך והקשה."]
[null,null,2,false,null,"הלאה","גם לאחר להיות עייף (בעיקר בהשמעת דברים משמעממים)","אין צורך להלאות אתכם בפרטים טכניים, אני רואה שאתם ממש עייפים."]
[null,null,2,false,null,"הלבין את פניו","בייש, העליב","הלבנת פני אדם ברבים היא מעשה שלא ייעשה - אסור לבייש אדם מול חבריו."]
[null,null,2,false,null,"הלעיט","פיטם, האכיל בכמות מרובה, נתן דבר בכמות רבה מידי","הוא הלעיט את עצמו במתוקים עד שחש בחילה."]
[null,null,1,false,null,"המיר","החליף (לרוב כסף)","ינאי  הלך לבנק והמיר את המטבע המקומי שברשותו למטבע זר"]
[null,null,1,false,null,"המיר (דת)","עזב דת אחת והצטרף לדת אחרת","יוסף החליט להמיר את דתו, וכעת הוא אינו יהודי, אלא נוצרי. "]
[null,null,2,false,null,"הניא","מנע, שכנע שלא לפעול","לא רציתי שילך, ניסיתי להניא אותו מהחלטה זו בכך שהצעתי לו גלידה."]
[null,null,3,false,null,"הנץ","זריחה","מוקדם בבוקר, עם הנץ החמה, יצאנו לדרך."]
[null,null,2,false,null,"הס","שקט, (משמש גם כמילת קריאה להשתקה)","הס! איני רוצה לשמוע אף מילה!"]
[null,null,2,false,null,"הסכית","הקשיב","הוא הסכית להרצאה בריכוז ובהנאה."]
[null,null,1,false,null,"הסלים","החמיר את המצב או שמצבו הוחמר","במקום להרגיע הוא עלול דווקא להסלים את המצב. "]
[null,null,2,false,null,"הסתגף","עינה את עצמו","יוסי נהג לסגף את עצמו, הוא אף פעם לא יצא לבלות ולהנות."]
[null,null,2,false,null,"הסתודד","דיבר עם מישהו בלחש, בהסתר","הם הסתודדו בצד וריכלו על העוברים ושבים."]
[null,null,2,false,null,"העלה ארוכה","החלים","הפצע העלה ארוכה, כמעט ולא ניתן להבחין בו יותר."]
[null,null,1,false,null,"העלים עין","העמיד פנים כמי שאינו רואה","ראיתי את הילד גונב אוכל מהחנות שלי אך העדפתי להעלים עין ולא דיווחתי על כך למשטרה."]
[null,null,3,false,null,"הפיס דעתו","פייס מישהו אחר","רינת כעסה על דני אך הוא הפיס את דעתה והיא התרצתה."]
[null,null,2,false,null,"הפליא מכותיו","הכה מכות קשות","הוא הפליא בו את מכותיו עד שזה זעק בכאב ונכנע."]
[null,null,2,false,null,"הפציר","ביקש בקשה חוזרת ונשנית בעקשנות","אמא של דני נהגה להפציר בפניו להסתכל היטב ימינה ושמאלה לפני שהוא חוצה את הכביש."]
[null,null,1,false,null,"הצטדק","התנַצֵל, הביא סיבות להוכיח שאיננו אשם","יעל הצטדקה בפני המרצה ואמרה שהיה עומס רב בכביש ולכן הגיעה באיחור."]
[null,null,2,false,null,"הצטהל","צהל, שמח","הצטהלתי לאור החדשות המצוינות."]
[null,null,1,false,null,"הצטווה","מוטלת עליו מצווה, ניתנת לו פקודה","התלמידים הצטוו לחזור מייד לכיתות."]
[null,null,1,false,null,"הצטרד","הפך לצרוד","אימו הזהירה אותו שלא לאמץ את קולו יותר מדי, אחרת הוא עלול להצטרד."]
[null,null,2,false,null,"הצר את צעדיו","עיכב את התקדמותו של אחר","השוטר הצר את צעדיהם של המתפרעים."]
[null,null,1,false,null,"הקיץ","התעורר משינה, העיר משינה","יוסי הקיץ משנתו ואכל ארוחת בוקר."]
[null,null,1,false,null,"הקשה","גרם לדבר מסוים להיות קשה","הוא יוצא מגדרו להקשות עלי בעבודתי."]
[null,null,2,false,null,"הקשה (שאלה)","שאל קושיה, שאלה","בשיר מה נשתנה נוהגים להקשות ארבע קושיות."]
[null,null,2,false,null,"הקשה עורפו","התעקש, סרב להיענות ל","ניסיתי להגיע לליבו אך הוא הקשה עורפו ולא נענה לי."]
[null,null,2,false,null,"הרהיב בנפשו","נהג באומץ","הוא הרהיב בנפשו והסתכן לטובת הכלל."]
[null,null,1,false,null,"הרוויח את לחמו","עבד לפרנסתו","הוא עבד קשה והרוויח את לחמו בכבוד."]
[null,null,1,false,null,"הרף עין","מהר מאוד","השיעור היה מעניין מאוד וחלף כהרף עין."]
[null,null,1,false,null,"השלה","עורר תקוות שוא","הוא השלה את העובד וגרם לו לחשוב שיש סיכוי שיתחשבו בדעתו, על אף שלא כך היה הדבר."]
[null,null,1,false,null,"השעה","הפסיק את שירותו של אדם שהואשם בעבירה הקשורה לתפקידו עד לבירור אשמתו","המנהל השעה את העובדת עד להודעה חדשה בעקבות הכשלים שלה."]
[null,null,2,false,null,"השתופף","התכופף","אבנר הוא בחור גבוה ולכן נאלץ להשתופף מעט כשהו אנכנס לחדר שתיקרתו נמוכה."]
[null,null,2,false,null,"השתרר","השתלט, ירד על","שקט השתרר לפתע בחדר."]
[null,null,2,false,null,"התאווה","חשק, רצה מאוד","הוא התאווה לפתוח עימה בשיחה, הוא רק חיכה להזדמנות לעשות זאת."]
[null,null,3,false,null,"התאונן","התלונן","הלקוחות התאוננו על התור הארוך."]
[null,null,2,false,null,"התבדה","גילה שמה שחשב אינו נכון","חשבתי שהמשימה קשה מדי עבורך, אך התבדיתי לבסוף - ביצעת אותה באופן מושלם."]
[null,null,2,false,null,"התבולל","התערבב בין אחרים וקיבל את מנהגיהם","הוא הצליח להתבולל בין ילידי המקום עד שאי אפשר היה לדעת שהוא גדל בארץ אחרת."]
[null,null,2,false,null,"התבסם","השתכר","הוא התבסם קלות בארוחת הערב, אך עדיין היה בשליטה על מעשיו."]
[null,null,1,false,null,"התבשר","קיבל בשורה","התבשרתי שאני זכאית למלגה מלאה, אין מאושרת ממני!"]
[null,null,2,false,null,"התגעש","נסער","הוא התגעש כששמע את הבשורות הקשות על מות סבתו."]
[null,null,2,false,null,"התחבט","התלבט, התייסר","הוא התחבט בנושא רבות, היה לו קשה מאוד להכריע."]
[null,null,2,false,null,"התחוור","התברר","התחוור לי שכל העבודה הקשה שלי הייתה לחינם."]
[null,null,1,false,null,"התחייך","התחיל לחייך, העלה חיוך","הוא התחייך למשמע העברית הרצוצה של העולה החדש, היא נשמעה לו משעשעת."]
[null,null,3,false,null,"התחלה","התחזה לחולה","עינת לא רצתה להגיע לבית הספר ולכן התחלתה מול אימה."]
[null,null,2,false,null,"התחסד","העמיד פני צדיק ותמים, נהג בצביעות","הוא סתם מתחסד, אני בטוח שיש לו מניע נסתר."]
[null,null,3,false,null,"התחקה","עקב אחר התפתחות בנושא מסוים","צריך להתחקות אחר המצב העדין, אם המצב ידרדר ייתכן שנצטרך לבצע מספר שינויים."]
[null,null,2,false,null,"התיירא","פחד","השפן התיירא מפני השועל, ולכן לא התחבא במחילה."]
[null,null,2,false,null,"התיך","הפך חומר מסוים לנוזל","אני אוהבת לאכול צנים עם גבינה מותכת וקטשופ."]
[null,null,1,false,null,"התיר","א. אפשר, ב. פתח/פרם קשר","א. אסור להתיר לילדים מתחת לגיל 16 לנסוע על אופניים חשמליים. ב. הוא הצליח להתיר את הקשר בקלות."]
[null,null,1,false,null,"התיר את הרסן","אפשר הפקרות, אפשר חופש מוחלט (במשמעות שלילית)","איני יודע מה לעשות עם יועד, הוא התיר כל רסן ומתנהג באופן חסר אחריות."]
[null,null,1,false,null,"התכעס","כעס","אמיר מאוד עצבני, הוא נוטה להתכעס כמעט על כל דבר."]
[null,null,1,false,null,"התלחש","דיבר עם אחר בלחישות","שני הילדים החלו להתלחש האחד עם השני"]
[null,null,2,false,null,"התמוגג","רווה נחת, התענג","הוא התמוגג מאושר כשהבין שהתקבל ללימודים."]
[null,null,2,false,null,"התנכר","התנהג כאילו אין לו קשר למשהו, התעלם במכוון","הוא התנכר למשפחתו ולא רצה שום קשר אליהם."]
[null,null,2,false,null,"התנצח","התווכח בצורה עקשנית","קשה לי לנהל דיון עם אוריאל, הוא מתנצח איתי ולא מוכן לשמוע דעות אחרות משלו."]
[null,null,2,false,null,"התעלה","ויתר על משהו כדי להשיג משהו חשוב יותר","יוני התעלה על הצורך שלו להעיר לעידית, הוא העדיף לתת לה לנצח הפעם."]
[null,null,2,false,null,"התערטל","הוריד את בגדיו ","עובר האורח החל להתערטל בפומבי עד שנותר ללא בגדים, ולכן נעצר על ידי המשטרה."]
[null,null,2,false,null,"התעשת","יצא ממצב של בלבול או מבוכה","המורה בילבל אותי אך מהר מאוד התעשתתי והתחלתי לסכם את החומר."]
[null,null,1,false,null,"התפכח","יצא מאשליה או ממצב של שכרות","פעם חשבתי שסוציאליזם הוא הדרך הנכונה, אך מאז התפכחתי."]
[null,null,1,false,null,"התקנא","התחיל לקנא","ראיתי כיצד היא רוקדת והתקנאתי, הלוואי שידעתי לרקוד כמוה."]
[null,null,2,false,null,"התקרש","הפך למוּצָק","הדם שזלג מברכו התקרש והפצע החל להתאחות."]
[null,null,2,false,null,"התרוממות נפש","התרגשות ושמחה","חשתי התרוממות נפש למראה הזריחה, אין מראה יפה מזה."]
[null,null,1,false,null,"התרצה","הסכים (לאחר סירב בהתחלה)","ביקשתי ממנו שוב ושוב להגיע למסיבה, עד שלסוף התרצה והבטיח להגיע."]
[null,null,2,false,null,"ויטלי","שופע חיים, חיוני, מלא מרץ ואנרגיה","מאז שמיצי החתול קיבל את כדור הצמר החדש הוא ויטלי מאי פעם, הוא לא הפסיק לשחק לרגע."]
[null,null,3,false,null,"זֶבֶד","מתנה, שי","קיבלתי מהוריי זֶבֶד לכבוד יום הולדתי."]
[null,null,3,false,null,"זבן","מוכר בחנות","הזבנית בחנות הבגדים הציעה לי עזרה."]
[null,null,2,false,null,"זחוח","מפגין שביעות רצון עצמית וביטחון עצמי","מאור הוא אדם זחוח, הוא חושב תמיד שהוא יודע טוב יותר מכולם."]
[null,null,3,false,null,"זיק","ניצוץ","ראיתי בעיניו זיק של תקווה: הוא עוד לא ויתר לגמרי."]
[null,null,2,false,null,"זך","נקי, טהור, צלול","המים היו זכים לגמרי, לא הייתה בהם טיפת לכלוך."]
[null,null,3,false,null,"זמורה","ענף של גפן","הפועל כרם את הענבים מהזמורה."]
[null,null,2,false,null,"זמם","תכנן לעשות משהו רע","הוא זמם לכייס את התיירים בזמן שדעתם מוסחת."]
[null,null,2,false,null,"זמר","קצץ ענפים","הגנן זמר את ענפי העץ באמצעות המזמרה החדשה שרכש."]
[null,null,1,false,null,"זרה מלח על הפצעים","הגביר את הכאב או הצער","רציתי מאוד לנסוע לטיול, אל תזרה לי מלח על הפצעים עם התמונות משם."]
[null,null,3,false,null,"חֵלֶב","(1) שומן בגופם של בע\"ח (2) כינוי לשעוות הנר (3) כינוי לחלק המשובח ביותר","(1) החלב אסור לאכילה לפי ההלכה. (2) חלב נזל מן הנר אל הצלוחית שתחתיו. (3) הזיתים והתמרים שלנו הם חלב הארץ."]
[null,null,2,false,null,"חֵמָה","כעס, זעם","חשתי חמה כששמעתי בחדשות על הנוכל שמרמה קשישים."]
[null,null,2,false,null,"חבוט","נדוש, חסר מקוריות","זהו נושא חבוט, בואו ננסה לחשוב על משהו יצירתי יותר."]
[null,null,2,false,null,"חבורה","חבלה בעור לאחר מכה","המכה שקיבלתי השאירה חבורה בידי השמאלית."]
[null,null,3,false,null,"חביצה","פודינג","לאחר ארוחת הערב קיבלנו לקינוח חביצה נהדרת."]
[null,null,3,false,null,"חבץ","בחש חלב לעשיית חמאה","הוא חבץ חלב אך כשל בכך, ולכן נאלץ לרכוש חמאה בסופר השכונתי."]
[null,null,1,false,null,"חג","הסתובב, סב","המטוס חג באוויר במשך שעתיים עד שקיבל אישור לנחיתה."]
[null,null,3,false,null,"חווק","שלב של סולם","אבי טיפס שלושה חווקים בסולם והגיע למדף העליון."]
[null,null,3,false,null,"חוטר","ענף עיקרי היוצא מגזע העץ, מקל","מצאתי חוטר נהדר למדורה הערב."]
[null,null,2,false,null,"חוסה","נמצא תחת הגנה של אחר, נמצא בתוך מחסה","תחת הגגון התקבצו להם כמה חוסים שחיפשו מחסה מהגשם."]
[null,null,2,false,null,"חוש!","מהר! (מחיש מהר)","חושי לעזרתו! הוא עומד ליפול!"]
[null,null,2,false,null,"חזר לסורו","חזר להרגליו הרעים","הוא כבר עבר גמילה מאלכוהול וכעת חזר לסורו והוא שותה מדי ערב."]
[null,null,2,false,null,"חירף את נפשו","סיכן את חייו","לוחמי האש חירפו את נפשם בשריפה בניסיותם להציל כמה שיותר אנשים."]
[null,null,1,false,null,"חכך בדעתו","התלבט, התחבט, היסס","הוא חכך בדעתו האם לצאת לטיול או להשאר בביתו."]
[null,null,1,false,null,"חלבן","מוכר חלב","בעבר היה עובר בשכונה חלבן ומוכר חלב בין הבתים."]
[null,null,2,false,null,"חלחלה","זעזוע","נתקפתי חלחלה למשמע המילים הקשות שלו."]
[null,null,2,false,null,"חלט","בישל במים רותחים","אימי נוהגת לחלוט שעועית בעוד שאני מעדיף לטגן אותה."]
[null,null,1,false,null,"חלץ","להסיר דבר שהיה תקוע או מהודק (פקק מבקבוק או נעל מהרגל)","נתבקשתי לחלוץ נעליים לפני שאני נכנס הביתה."]
[null,null,2,false,null,"חמד","רצה מאוד דבר מסוים - בדר\"כ משהו השייך לאחר","בעשרת הדיברות נכתב: \"לא תחמוד אשת רעך\". "]
[null,null,3,false,null,"חמד לצון","התבדח","יוסי חומד לצון פעמים רבות, קשה לו להיות רציני לזמן ממושך."]
[null,null,2,false,null,"חמל","חש חמלה","הוא חמל עליה ושיחרר אותה לחופשי."]
[null,null,1,false,null,"חנן","העניק חנינה","הנשיא חנן את אסיר העולם."]
[null,null,2,false,null,"חסר תקנה","שלא ניתן לתקן אותו","היא חסרת תקנה, כל הזמן חוזרת על אותן טעויות ולא לומדת מהן."]
[null,null,2,false,null,"חרון אף","כעס גדול","הם הרגישו את חרון אפו של המנהל, שהעניש אותם ללא רחמים."]
[null,null,2,false,null,"חרטום","החלק הקדמי והמחודד של נעל, ספינה, כלי או מקור העופות","הם עמדו בחרטום הספינה והביטו אל האופק."]
[null,null,3,false,null,"חריט","ארנק, תיק קטן לכסף","היא לבשה שמלה אלגנטית והצטיידה בחריט אופנתי."]
[null,null,2,false,null,"חריש","תהליך חרישה","לאחר החריש המתחילים בזריעה."]
[null,null,2,false,null,"חרך","סדק, חריץ קטן בקיר","הוא הציץ במתרחש דרך חרך קטן, כך שאיש לא ראה אותו."]
[null,null,2,false,null,"חרץ לשון","אמר דברי ביקורת, קילל","הוא חרץ לשונו ודיבר בגסות אל האורחים ההמומים."]
[null,null,1,false,null,"חשק","  א.חיבר זה לזה, קירב, הצמיד  ב. רצה מאוד; התאווה; השתוקק; חפץ","ב. הוא חשק בגלידה בטעם שוקולד א. הוא חשק את שניו "]
[null,null,2,false,null,"חשק שפתיו","שתק, נמנע מלדבר","רציתי להתערב ולהביע עמדה אך ידעתי שאין זה הדבר הנכון לעשות וחשקתי שפתיי."]
[null,null,3,false,null,"חתה","גרף, העביר (בדרך כלל גחלים) ממקום למקום","הוא חתה את הגחלים הלוהטות בעזרת מקל."]
[null,null,2,false,null,"טוויה","עשיית חוטים","מלאכת הטוויה היא עדינה ומדויקת, כשבסופה מתקבלים חוטים."]
[null,null,2,false,null,"טחן מים","אמר דברים חסרי טעם, חזר על דברים שכבר נאמרו ואין בהם חידוש או תועלת","אין טעם לחזור על ההסבר בפעם השלישית, זה ממש לטחון מים."]
[null,null,1,false,null,"טיב","איכות, מהות","האם בדקת את טיב הבד? כדאי להשקיע בבד איכותי."]
[null,null,2,false,null,"טל","טיפות מים המכסות את האדמה בשעות המוקדמות של הבוקר","טיפות הטל כיסו את השמשות בשעת הבוקר המוקדמת."]
[null,null,3,false,null,"טלא","שם טלאי","יוסי ביקש מהחייט להטליא את החור במכנסיו."]
[null,null,2,false,null,"טלאי","חתיכת בד או עור התפורה על קרע","יש לך חור בבגד, עליך לתפור טלאי ולכסותו."]
[null,null,2,false,null,"טף","ילדים קטנים","ברחבה התרוצץ הטף ועשה רעש ובלאגן."]
[null,null,2,false,null,"טרוניה","טענה קשה","הוא הביע טרוניה על ההרעה בתנאים."]
[null,null,2,false,null,"טרחן","מתעסק בטפל, מציק","בשבועות האחרונים רן נעשה טרחן, כבר לא כיף איתו"]
[null,null,2,false,null,"טרף","ערבב","צריך לטרוף את הקלפים לפני שמתחילים לחלק אותם. "]
[null,null,3,false,null,"טרשי","סלעי","הסביבה הטרשית לא איפשרה למטיילים לעבור."]
[null,null,2,false,null,"יבבה","יללה, בכי מקוטע","שמעתי יבבות חלושות מבית השכנים, נשמע שהיה ריב בין האחים."]
[null,null,2,false,null,"יגע","עייף, עובד עבודה קשה, טורח","הוא כבר עייף ויגע אחרי יום העבודה המפרך שעבר עליו."]
[null,null,2,false,null,"יד רוחצת יד","כינוי למצב שבו עוזרים אחד לשני כדי לקבל תמורה כל אחד מהאחר","הוא דואג לי למקום טוב בהופעה ואני בתמורה עוזרת לביתו בכתיבת העבודה - יד רוחצת יד."]
[null,null,3,false,null,"יוגב","איכר","בעבר הכלכלה נשענה בעיקר על חקלאות ויוגב היה מקצוע נפוץ."]
[null,null,2,false,null,"יוצא מכליו","התפרץ, איבד את שלוותו","הוא התאפק זמן רב לנוכח ההצקות שלה, אך לבסוף יצא מכליו וצעק עליה."]
[null,null,1,false,null,"יישב מחלוקת","מצא פתרון לסכסוך","הם רבו ביניהם ולבסוף פנו אל מנהיג הקהילה כדי שיישב את המחלוקת."]
[null,null,3,false,null,"ימה","מערבה, לכיוון מערב","יוסי פנה ימה, כלומר לכיוון הים שנמצא במערב."]
[null,null,2,false,null,"ימה","אגם גדול","אגם או ימה הוא גוף גדול של מים המוקף יבשה, כגון ים כנרת וים המלח."]
[null,null,2,false,null,"יצוע","מיטה","הוא נשכב על היצוע ומיד נרדם."]
[null,null,1,false,null,"יקב","מקום לייצור יין","ביקרנו ביקב \"זמורה\" וראינו איך מכינים בו יין."]
[null,null,3,false,null,"יקר המציאות","נדיר ביותר","סֵפר זה הוא יקַר המציאוּת, כמעט ואי אפשר למצוא כמותו. "]
[null,null,2,false,null,"ירד מנכסיו","איבד את כל הונו, התרושש","לאחר נפילת הבורסה אנשים רבים ירדו מנכסיהם והגיעו לחרפת רעב."]
[null,null,3,false,null,"ירכתיים","החלק האחורי (לדוגמא -יכרתי האונייה)","נוסעי האוניה נתבקשו לעבור מחלקה הקדמי אל הירכתיים שלה. "]
[null,null,2,false,null,"יש בדעתו","מתכוון","יש בדעתו להציע נישואים לחברתו בשלוש השנים האחרונות."]
[null,null,2,false,null,"יש בלבו עליו","שומר טינה ל-","עדיין יש בליבו של אמיר על אלי. נראה שאמיר לעולם לא יסלח לאלי על מעשיו בעבר."]
[null,null,3,false,null,"יש לאל ידו","יכול לעשות, בעל יכולת","הוא כל כך מוכשר, יש לאל ידו כל שירצה."]
[null,null,2,false,null,"ישים","דבר שאפשר ליישׂם אותו","התוכנית ישימה לחלוטין, היא אמורה לעבוד."]
[null,null,1,false,null,"ישן נושן","עתיק מאוד","רוני רכשה ספר ישן נושן, הוא נכתב לפני כמה מאות שנים."]
[null,null,1,false,null,"ישרו את ההדורים","ישבו את המחלוקת","לאחר סכסוך ממושך הם יישרו את ההדורים וחזרו לשתף פעולה."]
[null,null,3,false,null,"כְּבָרָה","מסננת של קמח","האופה סינן את הקמח באמצעות כברה."]
[null,null,2,false,null,"כְּרַךְ","עיר גדולה","תל אביב, חיפה וירושלים, למשל, הן כרכים. בכל אחת מהן חיים מעל למאה אלף תושבים. "]
[null,null,2,false,null,"כִּבְרָה","מרחק רב למדי - בדר\"כ בהתקדמות","הם עברו כברת דרך ארוכה יחד מאז שהכירו לפני מספר שנים."]
[null,null,2,false,null,"כִּתֵּר","הקיף מכל הצדדים","צבא סודן כיתר את בית רה\"מ חמדוק, עד שהאחרון נכנע."]
[null,null,2,false,null,"כבד פה","מגמגם","משה היה כבד פה ולשון. הוא התקשה בהגיית מילים."]
[null,null,2,false,null,"כבישה ","שימור מזון בחומץ או במלח","אני מעדיף מלפפונים שעברו תהליך כבישה במלח מאשר כאלו שעברו תהליך כבישה בחומץ."]
[null,null,2,false,null,"כבש את יצרו","התאפק, הבליג","הוא כבש את יצרו ולא הגיב להצקות של אחיו הקטן."]
[null,null,2,false,null,"כונן","יצר או ייסד","המועמד מטעם המפלגה הגדולה ביותר בכנסת לא הצליח לכונן ממשלה, ולכן מלאכת הרכבתה הועברה למועמד מטעם מפלגה אחרת."]
[null,null,2,false,null,"כיול","כיוון מכשיר המדידה כדי לשפר את רמת הדיוק שלו","המשקל הדיגיטלי צריך לעבור כיול, עד אז הוא ימשיך לספק תוצאות לא מספיק מדויקות."]
[null,null,3,false,null,"כיחד","לא גילה, הסתיר, הכחיש","רונית כיחדה את האמת ממני, החלטתי לא לדבר איתה עד שתספר לי את כמה שקרה ביום שני מבלי להחסיר פרט."]
[null,null,2,false,null,"כילה","גמר, חיסל, השמיד","המצביא הדגול כילה את כל אויביו."]
[null,null,3,false,null,"כילי","קמצן","למרות עושרו הרב, אורן אף פעם לא תרם כסף לנזקקים, הוא ממש כילי."]
[null,null,2,false,null,"כיליון ","כליה, אובדן, השמדה","הרבה דמויות בתנ''ך נענשו בכיליון על מעשים שלא תאמו את התפיסה הדתית של אותה התקופה."]
[null,null,2,false,null,"כיסופים","געגועים","אני חש כיסופים עזים לאימי, לא ראיתי אותה כבר מספר שבועות. "]
[null,null,2,false,null,"כיתור","להקיף דבר מסוים","מה שהביא למפלה הסופית של פלוגת האויב היא שפלוגתנו כיתרה אותם במפתיע."]
[null,null,2,false,null,"כיתת רגליו","הלך הליכה מרובה","בני ישראל כיתתו רגליהם במדבר במשך 40 שנה עד שהגיעו אל הארץ המובטחת."]
[null,null,2,false,null,"כלימה","בושה","רונית הכלימה כששמעה שביתה הבריזה היום מבית הספר."]
[null,null,2,false,null,"כמוסה","טבליה של תרופה","ליוסי כאב הראש ולכן בלע כמוסה מסוג אקמול שתקל על מצבו."]
[null,null,1,false,null,"כמיהה ","השתוקקות, רצון, געגועים","רוני חש כמיהה עזה לחברתו מיכל לאחר שלא ראה אותה במשך מספר ימים."]
[null,null,3,false,null,"כמש ","נובל, מצטמק, קמל","יוסי לא השקה את הפרח בגינתו במשך מספר ימים עד שלבסוף הפרח כמש. "]
[null,null,2,false,null,"כַּן","בסיס, יסוד","הקנווס הונח על כן הציור לפני שהצייר התחיל את עבודתו"]
[null,null,1,false,null,"כן שיגור","מתקן המשמש לשיגור","הטיל שנורה מכן השיגור לא פגע במטרה."]
[null,null,2,false,null,"כסיה","כפפה נשית מהיד עד המרפק","הכסיות שלבשה גרמו לה להראות מתנשאת."]
[null,null,2,false,null,"כָּפוּת","קשור היטב","האסיר היה כפות בחבל כדי שלא יוכל לברוח."]
[null,null,2,false,null,"כָּפַר","הכחיש (טענה מסוימת או אשמה), לא האמין באלוהים","הנאשם כפר באשמה, לטענתו הוא בילה בביתו בשעת הרצח."]
[null,null,2,false,null,"כרונולוגי","המסודר לפי סדר הזמנים","כל האירועים בספר \"ההיסטוריה של ארצות הברית\" מסודרים באופן כרונולוגי."]
[null,null,1,false,null,"כרם","מטע של גפנים/ ענבים","הפועלים יצאו מוקדם בבוקר לקטוף ענבים מהכרם."]
[null,null,1,false,null,"כשלעצמו","שהוא בנפרד מעניינים אחרים","הרעיון כשלעצמו יפה וראוי, אך יהיה קשה ליישמו בלי תמיכת ההנהלה."]
[null,null,2,false,null,"לא בכדי","לא לשווא, לא לחינם, כלומר: יש סיבה לדבר","לא בכדי התלמידים זכו בתחרות, הם התאמנו קשה במשך חודשים רבים."]
[null,null,2,false,null,"לא חסך שבטו","לא נמנע מביקורת קשה, גינה","המנהל לא חסך שבטו מהעובד המסכן, והטיח בפניו ביקורת קשה."]
[null,null,2,false,null,"לא כל שכן","על אחת כמה וכמה, אדרבה","לא חשבתי שנשרוד שבוע, לא כל שכן שלושה חודשים. "]
[null,null,1,false,null,"לא מן הנמנע","ייתכן","לא מן הנמנע שהוא יצליח במבחן למרות שלא למד אליו."]
[null,null,3,false,null,"לא שזפתו עין ","מעולם לא נראה, מעולם לא פורסם","מגלה היבשות חלם למצוא מקום שלא שזפתו עין אדם."]
[null,null,2,false,null,"לָאֶה","עייף, יגע","הוא לא הצליח להרדם במהלך הלילה ולכן חש לאה לאורך היום."]
[null,null,2,false,null,"לְאַלְתָּר","מִיָד, תֵכף, בלי עיכוב","חייבים לעזוב את הבניין לאלתר, הוא עלול לקרוס בכל רגע."]
[null,null,1,false,null,"לבה (אש)","מגביר את האש","רון הוסיף זרדים למדורה ובכך לבה את האש."]
[null,null,2,false,null,"להגן ","מי שאוהב לדבר","יוסי הוא טיפוס להגן, אי אפשר להשתיק אותו."]
[null,null,1,false,null,"לוע","א.מעבר הפה אל הוושט ב.פתח  ג.פי הקנה של כלי ירייה","הלבה הרותכת זרמה מתוך לוע ההר הגעש."]
[null,null,1,false,null,"לוקה","נפגע, ניזוק, חולה, פגום","התכנון היה לוקה בחסר שכן לא הייתה בו מספיק מחשבה לטווח רחוק."]
[null,null,2,false,null,"ליבה","מרכז, פנים, לב","בליבת הכור הגרעיני נמצאים מצבורי הדלק הגרעיני, ושם מתקיימת התגובה הגרעינית."]
[null,null,2,false,null,"למכביר","הרבה מאוד","הוא שמע מחמאות רבות למכביר על הופעתו האחרונה של הזמר המפורסם."]
[null,null,2,false,null,"למצער ","לכל הפחות","אם אינך מכיר את הנושא, למצער אל תתבטא בלי לשמוע קודם את שני הצדדים."]
[null,null,1,false,null,"למראית עין","לִכאורה, על פני השטח","למראית עין הוא אדם רגיל וחסר ייחוד, אבל כשמכירים אותו הוא מתגלה כאדם מיוחד."]
[null,null,2,false,null,"למשעי","באופן מושלם","יוסי התגלח למשעי לקראת ראיון העבודה. כשסיים, פרצופו היה חלק לחלוטין."]
[null,null,2,false,null,"לערך","בערך","באוסף הבולים שלו יש 100 בולים לערך."]
[null,null,2,false,null,"לפת","אחז בחוזקה","הוא לפת בחוזקה את ידו של הגנב ולא אפשר לו לברוח."]
[null,null,2,false,null,"לקוני ","מנוסח בקיצור","התלמיד הזה קיבל ציון נמוך בשאלה, מאחר שהוא ענה עליה בצורה לקונית, ולא בהרחבה"]
[null,null,2,false,null,"לקסיקון","רשימת מילים או ערכים","בלקסיקון \"אישים\" של ידיעות אחרונות מופיעים יותר מ-8,000 ערכי אישים."]
[null,null,1,false,null,"מְשֻלָּח כֹּל רֶסֶן, שְׁלוּחַ רֶסֶן, משולח רסן","מתפרץ, לא מרוסן","הוא התנהג באופן משולח רסן, ולכן לא נותר לנו אלא להרחיקו מבית הספר."]
[null,null,2,false,null,"מִסְבָּאָה","בית מרזח, מקום שמגישים בו משקאות ","יצאנו למסבאה ושתינו שם משקאות אלכוהוליים."]
[null,null,2,false,null,"מאוקלם","הסתגל לסביבה חדשה (אקלים = סביבה)","יוסי כבר מאוקלם לסביבה החדשה, הוא מרגיש בה ממש בנוח."]
[null,null,3,false,null,"מאכלת","סכין לשחיטה","הקצב שחט את השה התמים באמצעות מאכלת."]
[null,null,2,false,null,"מבכר","מעדיף","הוא מבכר חטיפים מלוחים על פני ממתקים."]
[null,null,1,false,null,"מברק","הודעה דחופה הנשלחת בדואר או בטלגרף","הוא שלח לאחותו מברק דחוף בדואר. "]
[null,null,2,false,null,"מגבעת","כובע גברים בעל שוליים","הכהנים חבשו לראשם מגבעת בעת העבודה בבית המקדש והמשכן."]
[null,null,2,false,null,"מגדף","משמיע דברי בוז","עמית כל הזמן מגדף ומקלל, זו התנהגות ממש לא נאותה."]
[null,null,3,false,null,"מגיה","בודק הגייה של טקטסים","עורך לשוני מגיה טקסטים לפני שהם עולים לאתר. "]
[null,null,2,false,null,"מגל","כלי לקצירת תבואה בעל להב מעוקמת","בעבר היו קוצרים את התבואה באמצעות מגל."]
[null,null,2,false,null,"מגנת לב","צער","למגנת לבו, הוא כשל בנסיונו לעזור לחברו הטוב. "]
[null,null,2,false,null,"מדווה","כאב, חולי","ביום השלישי יובל חווה מדווה שלא יכל להתמודד איתו ללא משכחי כאבים."]
[null,null,2,false,null,"מהביל ","מעלה אדים, אומר דברי הבל","הוא קנה בבית הקפה סנדוויץ' עם גבינת עזים וקפה מהביל."]
[null,null,2,false,null,"מהוה ","בלוי, מרופט","הריפוד של הספה הישנה היה מהוה מרוב שימוש ולכן החלפנו אותו בריפוד חדש. "]
[null,null,2,false,null,"מהמורה","חפירה או בור בדרך שעלולים להיתקל בהם","הוא נתקל במהמורה בדרך ונפל."]
[null,null,2,false,null,"מהסה","משתיק","המרצה מהסה את כל היושבים בחדר לפני שהוא מתחיל בהרצאה."]
[null,null,2,false,null,"מהל","ערבב נוזל בנוזל","לפי הוראות היצרן עליך למהול את התרופה במים."]
[null,null,2,false,null,"מהתלה","מעשה או דיבור שנועדו להצחיק","רונית הפכה לליצנית הכיתה, היא לא מפסיקה לספר מהתלות."]
[null,null,2,false,null,"מוחל","סולח","אני מוחל לך על הדברים הרעים שעשית לי."]
[null,null,3,false,null,"מוסר כליות","חרטה, ייסורי מצפון","הרגשתי מוסר כליות אחרי שצעקתי על אחותי, אז התקשרתי להתצנל."]
[null,null,3,false,null,"מוץ","קליפת גרגירי הדגן שמופרדת לפני טחינתם, דבר שאינו חשוב","גדי תמיד מתעקש שנשמור את המוץ, הוא טוען שאפשר להאכיל עם זה את הפרות."]
[null,null,2,false,null,"מורת רוח","חוסר נחת, אכזבה","איתי הביע מורת רוח מהציון הנמוך שקיבל במבחן."]
[null,null,2,false,null,"מזוכך","מטוהר","אמי תמיד קונה שמן זית מזוכך, היא אומרת ששאר השמנים לא בריאים."]
[null,null,2,false,null,"מזח","רְציף לספינות הנמשך מן החוף אל תוך הים","זוג האוהבים הלכו יד ביד על המזח וצפו בספינות העוגנות בו."]
[null,null,3,false,null,"מזקקה","מפעל לייצור משקאות חריפים ע\"י זיקוק","במזקקה שברחוב שוקן מייצרים ויסקי נהדר."]
[null,null,2,false,null,"מחושים","כאבים","הוא חש מחושים בבטנו כיוון שהחלב ששתה היה מקולקל."]
[null,null,2,false,null,"מחושל","א. מתכת המעוצבת באש ב.מחוזק לאחר עמידה בניסיון קשה","א. שינקן היא חרב יפנית שחושלה באש  ב. הוא יצא מחושל יותר לאחר שעמד בנסיון הקשה."]
[null,null,1,false,null,"מחלבה","המקום בו מייצרים מוצרי חלב (תנובה, לדוגמה). המקום שבו חולבים את הפרות הוא רפת ולא מחלבה","במחלבה זו מייצרים כמה מהגבינות האהובות עליי: קממבר וגרוייר."]
[null,null,2,false,null,"מחלצות","לבוש הדור","הוא יצא למסיבה לבוש במיטב מחלצותיו."]
[null,null,2,false,null,"מט לנפול ","רעוע, לא יציב","הגשר היה מט לנפול, ולכן אסור היה לעלות עליו."]
[null,null,2,false,null,"מיאן","סרב","אל תמהר למאן להצעתו, לא בטוח שתהיה אחת טובה יותר."]
[null,null,1,false,null,"מייגע","מעייף","הפגישה ארכה כשעתיים וחצי והייתה מייגעת מאוד, נדמה היה שהיא לא תסתיים לעולם"]
[null,null,2,false,null,"מיתמם","מעמיד פני תמים","הוא סתם מיתמם, אני בטוח שהוא היה מודע למעשיו."]
[null,null,3,false,null,"מכורה","מולדת","ישראל היא מכורתי, נולדתי בה לפני כ-40 שנה."]
[null,null,3,false,null,"מכמורת","רשת דיג","הדייגים הצליחו לתפוס מספר רב של דגים באמצעות מכמורת."]
[null,null,2,false,null,"מכשור","כְּלַל המכשירים המשמשים לפעולה מסוימת","רופא השיניים קנה מכשור חדש ומשוכלל."]
[null,null,2,false,null,"מלאכת מחשבת","מעשה אומנות","התמונה העתיקה שצייר פיקאסו היא ממש מלאכת מחשבת."]
[null,null,2,false,null,"מליץ יושר","מי שמעיד על טיבו של אחר","ביקשו ממני לשמש כמליץ יושר של חברי הטוב נועם. המלצתי עליו בשמחה."]
[null,null,1,false,null,"מלתחה ","מקום להחלפת בגדים, מלאי בגדים של אדם,חדר או ארון לבגדים","נכנסתי אל המלתחה כדי להחליף בגדים."]
[null,null,3,false,null,"ממגורה","מחסן לאחסון תבואה, אסם","שמרנו את התבואה בממגורה."]
[null,null,2,false,null,"מן הנמנע","לא ייתכן","דבר זה מן הנמנע הוא, לא ייתכן שהוא יתרחש."]
[null,null,2,false,null,"מנץ ","מוציא ניצנים, זורח","א. השקד מנץ בטו בשבט    ב. הוא מתעורר בכל בוקר כשהשמש מניצה"]
[null,null,2,false,null,"מסוקס","מחוספס","גזע העץ היה מסוקס וזה עזר לרון לטפס על העץ."]
[null,null,2,false,null,"מסמר שער ","מחריד, מצמרר","התאונה הייתה מסמרת שיער. "]
[null,null,3,false,null,"מסעד","חלק ברהיט המשעינים עליו את הראש הרגליים או הידיים","הפסיכולוגית נשענה על המסעד ושאלה לשלומי, תנוחתה השרתה עליי נחת. "]
[null,null,2,false,null,"מסק","קטף זיתים","הפועלים התעוררו מוקדם בבוקר כדי למסוק זיתים מהמטע."]
[null,null,1,false,null,"מסרגה","אחד מזוג מחטים ארוך המשמש לסריגה","הסבתא סרגה לנכדתה סוודר מצמר באמצעות זוג מסרגות."]
[null,null,3,false,null,"מסתמא","מתעוור, מסתנוור","בשל התאונה נסתמאו עיניו, וכעת הוא עיוור לחלוטין."]
[null,null,2,false,null,"מעילה","שימוש פרטי בכספים של אחרים ללא רשות","משנתגלתה המעילה שביצעו כמה ממנהלי החברה, הנושא עבר לטיפולה של המשטרה."]
[null,null,2,false,null,"מעל","הפר את האמון שנתנו בו","הוא מעל באמון שנתנו בו מפקדיו, וכעת לא ניתן לסמוך עליו יותר."]
[null,null,2,false,null,"מעפיל ","עולה למקום גבוה, מתחרה על הישג גבוה יותר ","קבוצת הכדורגל ניצחה במשחקה האחרון, ולכן היא מעפילה לשלב הבא בטורניר."]
[null,null,1,false,null,"מפח נפש","אכזבה","משחק הכדורגל הסתיים במפח נפש מבחינת אוהדי בית\"ר, לאחר שקבוצתם ספגה שער בדקה האחרונה והפסידה במשחק."]
[null,null,3,false,null,"מצונף","מכורבל, מפותל, מקופל, כרוך","עמיחי יושב מצונף בפינת החדר ולא רוצה לדבר עם אף אחד."]
[null,null,2,false,null,"מצועצע","מקושט יותר מידי","המכנס שקנית לי מרגיש מעט מצועצע, יש עליו יותר מדי קישוטים מיותרים."]
[null,null,2,false,null,"מצילה ","היחיד של מצילתיים","יוסי הוא מצילתן מחונן,  יש לו שתי מצילות עגולות עשויות מתכת, ועל ידי הקשתן זו בזו הוא מפיק מהן צלילים נהדרים."]
[null,null,2,false,null,"מצנפת","כובע בעל קצה ארוך ומחודד","הקטקטים נהגו לחבוש לראשם מצנפות."]
[null,null,2,false,null,"מֶצֶר","מצטער","אני מצר על הדברים הנוראיים שאמרתי לך, האם תוכל לסלוח לי?"]
[null,null,2,false,null,"מקומם ","ממריד, מעורר למרד","החלטת הממשלה הייתה מקוממת, ובעקבותיה אזרחים רבים יצאו להפגין ברחובות."]
[null,null,2,false,null,"מקטורן","מעיל קצר (ז'קט)","הוא נהג ללבוש מקטורן במהלך החורף."]
[null,null,2,false,null,"מקים שאון","אדם העושה רעש, אדם המעורר המולה","הוא מקים שאון בכל מקום אליו הוא מגיע, אי אפשר לפספס אותו."]
[null,null,1,false,null,"מקשה","שדה אבטיחים , קישואים ושאר דלועים","החקלאי מגדל אבטיחים במקשה."]
[null,null,3,false,null,"מרובב","שיש עליו כתמים, גָדֵל פּי עשׂרת אלפים, נִהיֶה לִרבָבה","התנהגותו הייתה ללא רבב ולכן קיבל את תעודת ההצטיינות החברתית."]
[null,null,2,false,null,"מרשה","לקוח של עורך דין","עורך הדין טען בפני השופט: \"מרשי כופר באשמה\". "]
[null,null,2,false,null,"מש (mash)","זז","הוא לא מש מכסאו מכיוון שפחד שאם יעזוב אותו אפילו לרגע הכסא ייתפס. "]
[null,null,2,false,null,"משוא פנים","הפליה לטובה","שופטי בית המשפט נשבעים לשפוט ללא משוא פנים. "]
[null,null,1,false,null,"משואה ","לפיד, אבוקה","הזמר שלומי שבת נבחר להדליק משואה ביום העצמאות האחרון."]
[null,null,2,false,null,"משובב נפש","עושה נחת, מרענן","ההופעה שערכו הילדים הייתה משובבת נפש."]
[null,null,1,false,null,"משום מה","מסיבה כלשהי","משום מה לא הצלחתי להדליק את המחשב."]
[null,null,3,false,null,"משח","מרח","צריך למשוח את המשחה על הפצע שלוש פעמים ביום."]
[null,null,2,false,null,"משט","מפגן שיט","המשט היה מרהיב ביופיו, השתתפו בו לא פחות מ-20 ספינות."]
[null,null,2,false,null,"משכבר הימים","מלפני זמן רב","אני מכירה אותו משכבר הימים,למדנו ביחד בבית הספר היסודי."]
[null,null,3,false,null,"משכון","עירבון, חפץ המופקד בידי המלווה להבטחת פירעון החוב","הוא השאיר את הטבעת של אמו למשכון בבית העבוט עד שיוכל לפרוע את החוב."]
[null,null,2,false,null,"משלח יד","מקצוע","יוסי הוא רופא במקצועו, זהו משלח ידו."]
[null,null,2,false,null,"משמים","משעמם","ההרצאה הייתה משמימה, אי אפשר היה להאזין לה עד סופה."]
[null,null,2,false,null,"משעול","שביל","הלכתי במשעולי הגן הבוטני לפני מספר ימים ונהנתי מאוד."]
[null,null,1,false,null,"משתה","סעודה חגיגית","המלך ערך משתה גדול לכל חייליו לאחר נצחונם הגדול בקרב. "]
[null,null,1,false,null,"משתמט","אדם המתחמק מחובה מסוימת","הוא משתמט מחובתו לשרת בצבא."]
[null,null,2,false,null,"מתאבן","מנת פתיחה קטנה בתחילת הארוחה שנועדה לעורר את התיאבון","רוני הגישה לאורחיה מתאבנים בתחילת הארוחה כדי לעורר בהם תאבון."]
[null,null,2,false,null,"מתבדר ","משתעשע, מתנפנף ברוח","יוסי פתח את החלונות ברכבו בזמן הנסיעה ולכן שיערו התבדר ברוח שנכנסה."]
[null,null,3,false,null,"מתבן","מחסן לתבן, אסם (תבן = קש)","לאחר שהחקלאי סיים לקצור את החיטה, הוא אחסן אותה במתבן."]
[null,null,1,false,null,"מתוודע ","עושה היכרות עם אחר,מזדהה,נעשה מיודע","אפשר לראות בקצה השני של החדר את יוחאי מתוודע עם ירין."]
[null,null,2,false,null,"מתחסד","מתחזה לצדיק","הוא סתם מתחסד, ברור לי שהוא לא אדם טוב כמו שהוא רוצה שנאמין."]
[null,null,1,false,null,"מתחצף","מתנהג בחוצפה","תמיר התחצף למנהלת בית הספר, ולכן היא נאלצה להשעותו למספר ימים."]
[null,null,2,false,null,"מתיימר","מתפאר ביכולת שעדיין לא עמדה למבחן","הוא מתיימר לנצח בתחרות, אבל לא בטוח שזה באמת יקרה."]
[null,null,2,false,null,"מתקער","נעשה קעור","תוכלו לשים לב שמשטח עץ יתחיל להתקער אם תניחו אותו הרבה זמן במקום רטוב."]
[null,null,3,false,null,"מתרס","מחסום, בריקדה","המוחאים עמדו משני צידי המתרס, חלקם תמכו בפירוק החברה וחלקם התנגדו לפירוק החברה."]
[null,null,2,false,null,"נִרְפָּה","עצל, חלש","יוסי מתנהג כאדם נרפה מאז שעזב את עבודתו, קשה להקים אותו מהספה."]
[null,null,2,false,null,"נֵכָר","ארץ זרה","קשה מאוד לטייל בארץ נכר מבלי להכיר את השפה המקומית."]
[null,null,1,false,null,"נא","מבושל למחצה, מילת נימוס המשמשת לבקשה","א. הסטייק היה נא, לטעמי היה צריך לבשל אותו מעט יותר. ב. נא לסדר את החדר."]
[null,null,1,false,null,"נאלם, נאלם דום","השתתק, נעשה אילם","הנאשם נאלם דום במהלך חקירת המשטרה."]
[null,null,2,false,null,"נאקה","נקבת הגמל","חלב הנאקות נחשב למעדן בתרבות הבדואית."]
[null,null,3,false,null,"נביא זעם","אדם המזהיר מפני חורבן המתקרב ובא עקב עיוותים מוסריים או דתיים","הוא מתנהג כמו נביא זעם, כל הזמן מנבא שדברים רעים יקרו כי אני אוכל בשר עם חלב."]
[null,null,3,false,null,"נבצר","מי שמנוע מלעשות דבר מסוים","נבצר ממנו להגיע לישיבה מכיוון שהיה צריך לטפל בבנו החולה."]
[null,null,3,false,null,"נבצר","ענב שנקטף","הענבים נבצרו בכרם."]
[null,null,2,false,null,"נוגה","זוהר, אור חזק, הכוכב השני במערכת השמש","איתי לקח את חברתו לטיול רומנטי לאורו הנוגה של הירח."]
[null,null,1,false,null,"נדדה שנתו","התקשה להירדם","באותו לילה נדדה שנתו, בבוקר שלמחרת הוא לא יכל לתפקד כמו שצריך."]
[null,null,2,false,null,"נדם","השתתק","קולו נדם כשהבין שכולם יודעים שהוא משקר."]
[null,null,3,false,null,"נדן","נרתיק לחרב","בתום הקרב החזיר האביר את החרב לנדן והמשיך לדרכו."]
[null,null,2,false,null,"נהיר","ברור, בהיר","הסברו של המורה היה נהיר לכולם. כששאל את התלמידים האם הם הבינו את דבריו כולם ענו כן."]
[null,null,1,false,null,"נהנתן","רודף תענוגות","הוא טיפוס נהנתן, כל הזמן רודף אחרי העונג הבא."]
[null,null,2,false,null,"נוּדָהּ ","הורחק, הוחרם חברתית","הוא נודה משאר העובדים כשגילו שהוא חולה בקורונה. "]
[null,null,1,false,null,"נווה מדבר","מקום פורה במדבר","לאחר שהלכנו במשך מספר שעות במדבר החם מצאנו נווה מדבר ובו יכולנו להרוות את צמאוננו."]
[null,null,2,false,null,"נוח לכעוס","שנוטה לכעוס, שכועס בקלות","אורי נוח לכעוס בשנים האחרונות, קשה לדבר איתו מבלי שיתרגז עליך."]
[null,null,2,false,null,"נוטר ","שומר","הנוטר בדק את תכולת התיק של מיכל לפני שאפשר לה להכנס לקניון."]
[null,null,1,false,null,"נוטר טינה","שומר שנאה בליבו","דלית הכתה את יעל. גם לאחר 5 שנים, יעל עדיין נוטרת לה טינה על כך."]
[null,null,2,false,null,"נול ","מכונת אריגה","התופר רכש נול ובאמצעותו ארג סוודר."]
[null,null,2,false,null,"נוס!","ברח! (בציווי)","נוס על נפשך, יש פה מפלצת גדולה ומפחידה. "]
[null,null,1,false,null,"נועץ","מתייעץ","הוא נועץ במורה שלו לפני שהחליט  להרשם לקורס."]
[null,null,2,false,null,"נושה","אדם התובע מלווה את חובו","הנושים הגיעו למאפיה בשעות הבוקר וביקשו את כל הכסף שהלוו לאופה בחזרה. "]
[null,null,2,false,null,"נושע","שמישהו הציל אותו (הושיע אותו)","הוא היה נתון לסכנה גדולה אך ברגע האחרון נושע ע\"י אביו."]
[null,null,3,false,null,"נחיל","להקה גדולה של בעלי חיים (בדר\"כ הכוונה לחרקים ומדוזות)","שכחתי צנצנת ריבה פתוחה וכשחזרתי הביתה גיליתי נחיל נמלים מטיילות על השיש."]
[null,null,2,false,null,"נחמה פורתא","נחמה קטנה","העובדה שחלק מהרכוש שנגנב הושב אליי הייתה לי כנחמה פורתא, עדיין כאב לי שטבעת הנישואין שלי לא נמצאה."]
[null,null,2,false,null,"נחשול","גל גבוה","הנחשול איים להטביע את הסירה."]
[null,null,2,false,null,"נחתום","אופה","הנחתום אפה עוגות ועוגיות ומכר אותם במאפייה."]
[null,null,2,false,null,"נטה חסד","נהג בחיבה כלפי","הוא נטה חסד כלפיי, תמיד חייך אליי בכל פעם שנפגשנו."]
[null,null,1,false,null,"נטע","שתל","בכל טו בשבט יוצאים הילדים ליער כדי לנטוע בו עצים חדשים."]
[null,null,2,false,null,"ניאות","מסכים","הוא ניאות לקבל את בקשתה של העובדת לקחת מספר ימי חופש מהעבודה."]
[null,null,2,false,null,"ניבים","שיניים","לערפדים יש ניבים חדים."]
[null,null,2,false,null,"ניגף ","מובס,מוכה,נפגע","האויב ניגף ונאלץ להכנע. "]
[null,null,3,false,null,"נידה","הרחיק מן הציבור","בשושלות המלוכה הבריטיות אפשר למצוא מקרים רבים שבהם בני משפחה נודו בשל מעשים לא ניאותים. "]
[null,null,2,false,null,"ניואנס","גיוון קל","אהבתי במיוחד את הניואנס שהוסיפה לריקוד החדש."]
[null,null,2,false,null,"ניחא ","מילא, נו טוב, שיהיה","ניחא, אני מקבל את הצעתך למרות שאיני שלם איתה."]
[null,null,3,false,null,"ניחם","התחרט","אורן ניחם על כך שבחר ללמוד באוניברסיטת תל אביב ולא במכללת תל-חי. "]
[null,null,2,false,null,"ניחן","יש לו סגולות טובות כמו יופי או כישרון, מאופיין ב (בדר\"כ בדבר טוב)","הוא ניחן בכישרון רב לשירה וריקוד."]
[null,null,2,false,null,"ניחר","יבש מאוד","גרוני ניחר, לא שתיתי כבר כמה שעות."]
[null,null,2,false,null,"ניכש","תלש עשבים שוטים","הגנן ניכש האדמה עד שסיים לנקות אותה מכל העשבים השוטים."]
[null,null,3,false,null,"נים ולא נים","לא ישן לגמרי (מילולית ישן ולא ישן)","ישנתי שנת נים ולא נים, אין סיכוי שאצליח במבחן מחר."]
[null,null,2,false,null,"ניפה (קמח)","סינן קמח בכדי להפריד ממנו גושים או פסולת","צריך לנפות את הקמח לפני שמשתמשים בו."]
[null,null,1,false,null,"ניצן","פקעת העלים לפני שהם נפתחים (הצמח בראשית התפתחותו)","הראיתי לבני את ניצני השקדיה, הוא כמעט ולא האמין לי שיצמחו מהם פרחים."]
[null,null,1,false,null,"ניצת","נדלק, נשרף","השרפה ניצתה בשוגג."]
[null,null,2,false,null,"נישא ","א. נאמר, נסחב.  ב.  נכנס לברית נישואין","א. הילד הקטן נישא על כתפי אביו ב. העלם הצעיר נישא לבת זוגתו"]
[null,null,2,false,null,"ניתך","ניתז בחוזקה, נמס - הפך ממוצק לנוזל","א. הגשם ניתך על חלונות הבתים בעוצמה רבה. ב. חיממנו את מטבעות הזהב עד שהם ניתכו."]
[null,null,1,false,null,"נכרה","נחפר, הוצא ממעמקי האדמה","הפחם נכרה ממעמקי האדמה."]
[null,null,3,false,null,"נעור ","מתעורר, ער","הוא נעור בעקבות צלצול הטלפון ולא הצליח לחזור לישון."]
[null,null,3,false,null,"נעתר","נענה לבקשה (בדרך כלל אחרי שכנועים רבים)","הוא נעתר לבקשתם של חבריו להקדים את המפגש בכמה ימים."]
[null,null,2,false,null,"נפל בחלקו","זכה ב","נפלה בחיקו הזדמנות להופיע מול קהל רב. "]
[null,null,2,false,null,"נפתל ","א. מסתבך, נאבק  ב.עקמומי, לא ישר","ב. הדרך למעלה ההר נפתלת, היא תקח לנו שעות. עדיף לעלות על רכבל."]
[null,null,2,false,null,"נצר את לשונו, נצר את שפתיו","שתק","אני מעדיף לנצור את לשוני ולומר את שיש לי לומר בפורום המתאים"]
[null,null,2,false,null,"נקלה ","בזוי, נחות","המלך היה איש נקלה, לא פעם הוא הטיל מיסים גבוהים על אנשים חסרי כל."]
[null,null,3,false,null,"נקפו ליבו","התחרט, הרגיש ייסורי מצפון","לאחר שגנב מהמכולת חבילת מסטיקים, נקפו ליבו של יוסי והוא החליט להחזירם."]
[null,null,3,false,null,"נרגן ","רוטן, מתלונן, מעורר ריב","הוא טיפוס נרגן, כל היום רק מתלונן."]
[null,null,2,false,null,"נרעש","נסער, נרגש","הוא היה נרעש כששמע את החדשות הרעות."]
[null,null,2,false,null,"נשגב מבינתו","לא מצליח להבין","הדבר היה נשגב מבינתו, הוא לא הצליח להבין אותו."]
[null,null,2,false,null,"נשמט","נופל שלא בכוונה, מוחסר (מסיפור או מכתוב) בטעות","הכוס נשמטה מידיו ונשברה."]
[null,null,2,false,null,"נתן פומבי","פרסם ברבים","המשורר הביישן החליט לתת פומבי לשיריו והופיע איתם בערב משוררים צעירים."]
[null,null,3,false,null,"סבא","השתכר","יצאנו לבר השכונתי כדי לסבוא."]
[null,null,2,false,null,"סגלגל ","אליפטי, סגול במקצת","החדר הסגלגל של נשיא ארה\"ב נקרא כך בגלל צורתו העגלגלה."]
[null,null,2,false,null,"סובב בכחש (2)","רימה, הטעה","הוא סובב בכחש את הרוכשים והם נפלו בפח."]
[null,null,3,false,null,"סוור","אדם הפורק מטען מאוניה (ערמה מסודרת של שקים או ארגזים המיועדת למשלוח = סואר)","הסוור פרק את המטען הכבד מהאוניה והעמיס אותה על המשאית."]
[null,null,2,false,null,"סורר ","מרדן, לא מציית","החייל הסורר לא ציית להוראות מפקדיו ולכן נשפט ונענש בחומרה."]
[null,null,1,false,null,"סילף","תיאר דבר בצורה לא נאמנה למציאות","יהורם סילף את כל העובדות, אסור להאמין לשום דבר שהוא אומר."]
[null,null,2,false,null,"סַיָּס ","מטפל בסוסים","הסיס דואג לנקות ולהאכיל את הסוסים בארווה בכל יום."]
[null,null,2,false,null,"סיקל ","סילק אבנים","החקלאי היה חייב לסקל את האדמה לפני ששתל שם כרובים."]
[null,null,2,false,null,"סיתת","החליק אבנים לצורך בניה","הבונה סיתת את האבנים כך שישתלבו היטב זו בזו."]
[null,null,1,false,null,"סכך","כיסה, שם סכך","הגגון הקטן סכך עלינו מפני הגשם."]
[null,null,1,false,null,"סכר את פיו","שתק בעצמו, השתיק אדם אחר","רונית החליטה לסכור את פיה כשהמורה שאלה אותה אם רותי, חברתה הטובה, ציירה על השולחן."]
[null,null,2,false,null,"סנגר","שימש כסנגור, מגן על נאשם במשפט","עורך הדין התקשה לסנגר על הנאשם בבית המשפט, מכיוון שהראיות נגדו היו חד משמעיות."]
[null,null,3,false,null,"סנוקרת","אגרוף","המתאגרף חטף סנוקרת מיריבו וצנח על הרצפה."]
[null,null,3,false,null,"סר חנו","הפסיק להיות אהוב (היה לו חן והוא סר)","הוא היה התלמיד המועדף על מורתו, אך לאחר שהתחצף אליה סר חנו בעיניה."]
[null,null,2,false,null,"סתום","לא מפורש, לא ברור","אני אוהב את הספר כולו למעט המשפט הסתום שמופיע בעמוד האחרון שבספר, אף אחד לא מצליח להבין מהי כוונתו של הסופר."]
[null,null,2,false,null,"עגלון","מי שמעביר נוסעים או סחורות בעגלה","העגלון נהג את העגלה ממקום למקום."]
[null,null,1,false,null,"עדי","תכשיט","אבי קנה לאשתו עדי יפהפה לרגל יום הולדתה."]
[null,null,2,false,null,"עוּל יָמִים","צעיר","יש לנהוג בעול ימים בזהירות יתרה שכן הוא רגיש מאוד."]
[null,null,2,false,null,"עומד במריו","אדם שלא נכנע","הוא עומד במריו ואינו מוכן להכנע "]
[null,null,2,false,null,"עומד בעינו","נותר לא שינוי","הדבר נותר עומד בעינו, לא השתנה בו דבר."]
[null,null,2,false,null,"עורר את חמתו","הכעיס, הרגיז, עצבן את","הוא עורר את חמתו של אביו מאחר שהשאיר את חדרו מבלוגן."]
[null,null,2,false,null,"עטור ","מעוטר, מקושט","הוא היה מעוטר בקעקועים על כל גופו."]
[null,null,3,false,null,"עיבוי","הפיכה של אדי מים לנוזל","כחלק ממחזור המים הטבעי מי הים מתאדים ומתעבים חזרה לעננים."]
[null,null,2,false,null,"עילג ","מגמגם, שאינו רהוט,שיש בו שגיאות","יוסי מדבר בצורה עילגת, הוא לא מצליח להתבטא בצורה רהוטה."]
[null,null,1,false,null,"עיר מקלט","עיר מחסה ומקלט, מקום מבטחים","בתורה מצווים להקצות ערי מקלט לטובת אנשים שרצחו בשגגה."]
[null,null,2,false,null,"עיר רפאים ","כינוי לעיר שתושביה עזבו אותה , עיר ללא אנשים","זוהי עיר רפאים, כל תושביה עזבו אותה."]
[null,null,2,false,null,"עישב","תלש עשבים ","הגנן החל לעשב את האדמה עד שלא נותרו בה עשבים שוטים."]
[null,null,2,false,null,"על נקלה","בקלות","הוא הצליח לנצח במשחק על נקלה."]
[null,null,2,false,null,"על פרשת דרכים","מצב שיש בו התלבטות","הוא נמצא על פרשת דרכים, האם להשאר במקום העבודה או לעזוב."]
[null,null,3,false,null,"על קרן הצבי","דבר שיש בו סיכון","הוא שם את כספו על קרן הצבי כשבחר להשקיע אותו בחברה הכושלת."]
[null,null,2,false,null,"עלב ","העליב","לאחר שעלב דני בחברו הטוב, דני נאלץ לבקש סליחה."]
[null,null,2,false,null,"עלווה","כלל העלים שעל העץ","לשיח זה יש עלווה צפופה."]
[null,null,2,false,null,"עלום ","נעלם, לא ידוע","הנער העלום מהחדשות הסעיר את כל המדינה - איך ייתכן שאף אחד עדיין לא זיהה אותו?"]
[null,null,1,false,null,"עלז","שמח","מצווה גדולה לעלוז בחג פורים."]
[null,null,2,false,null,"עלי","מוט קטן בעל ראש כדורי המשמש לכתישה (של גרעינים וכו') במכתש","הוא שם את הגרעינים במכתש, ולאחר מכן מעך אותם באמצעות העלי."]
[null,null,1,false,null,"עמד בדיבורו","קים את מה שהבטיח","ראש העיר החדש עמד בדיבורו בנוגע לכל הבטחות הבחירות שלו."]
[null,null,2,false,null,"עמד בניסיון","לא התפתה","הוא עמד בנסיון ולא התפתה לגנוב את האופניים שנותרו לא קשורות, למרות שהייתה לו הזדמנות לעשות זאת."]
[null,null,2,false,null,"עמד מנגד","לא בא לעזור","הוא עמד מנגד למרות קריאות לעזרה של העלמה במצוקה."]
[null,null,2,false,null,"עמד על טיבו","תהה את אופיו או מהותו","כבר שנים שאנו עובדים יחד, ועדיין לא הצלחתי לעמוד על טיבו של אדם זה."]
[null,null,3,false,null,"ענבל","א. לשון הפעמון שבאמצעותה הפעמון מפיק צליל ב.איבר בפה הנמצא בלוע","א. כשהענבל ייגע 4 פעמים בדפנות הפעמון תדעי שהשעה היא 16:00.  ב. הרופא בדק לי את הענבל ואמר שיש לי שם נפיחות. "]
[null,null,2,false,null,"ענו","צנוע","הוא בחור ענו, אף פעם לא שמעתי אותו מתפאר במעשיו."]
[null,null,2,false,null,"ענף","בעל ענפים רבים, מקיף ומגוון ","ישנם תחומי מחקר ענפים בכל הנוגע לחקר המוח."]
[null,null,2,false,null,"עסיס","מיץ של פירות","החלק האהוב עלי בתפוז הוא העסיס, כל כך כיף לשתות אותו!"]
[null,null,1,false,null,"עששית","מנורת נפט","קבוצת המטיילים האירה את דרכה בלילה באמצעות עששית."]
[null,null,1,false,null,"פַּדַּחַת","החלק הקדמי של הגולגולת מעל המצח","הוא גירד בפדחת "]
[null,null,3,false,null,"פָּשָׂה","התרחב,התפשט","הוירוס פשה באוויר החדר וכל מי שנכח בו חלה."]
[null,null,2,false,null,"פגיון","חרב קצרה","הוא דקר את המלכה בעזרת פגיון."]
[null,null,2,false,null,"פדה","א.נתן כסף עבור אדם או סחורה ב.שיחרר, הציל","א. במקומות עבודה מסוימים נהוג לפדות ימי חופש ולקבל בעבורם תשלום.   ב. לאחר שטליה נחטפה בטיול באפריקה אביה פדה אותה מהשבט החוטף בסכומיי עתק."]
[null,null,3,false,null,"פולמוסן ","אדם המעורר פולמוס, אדם המרבה להתווכח","דני הוא פולמסן, הוא כל הזמן נוטה להתווכח."]
[null,null,3,false,null,"פותה","פתי, תמים","הילד הפותה האמין לכל שקריו של חברו."]
[null,null,2,false,null,"פיק ברכיים","פחד","שחקנית התאטרון קיבלה פיק ברכיים רגע לפני תחילת המופע ולכן לא נותרה ברירה אלא להחליפה."]
[null,null,2,false,null,"פיר","מנהרה, חפירה (בדר\"כ אנכית) בקרקע או במבנה ","הפיר הזה בטח בעומק של שמונה מטרים."]
[null,null,3,false,null,"פכר","שילב בכוח, הצמיד, מעך","יוסי פכר את אצבעותיו מרוב דאגה לבתו הקטנה. "]
[null,null,2,false,null,"פלג ","(א) נחל קטן, יובל, (ב) קבוצה עצמאית בתוך מפלגה","(ב) המפלגה חולקה לכמה פלגים שונים שלכל אחד מהם אג'נדה שונה (א) העץ נשתל ליד פלג הנהר כדי שיוכל להנות ממימיו"]
[null,null,2,false,null,"פלה","הוציא כינים","אביה של ענת שם לב שהיא מגרדת בראשה, ולכן הבין שהוא צריך לפלות כינים משיערה."]
[null,null,2,false,null,"פלצות","פחד גדול, זעזוע","הם מרגישים שהם נחנקים וזה מעורר פלצות.\n"]
[null,null,1,false,null,"פמוט","כַּן לנֵר","בכל יום שישי אימי נוהגת להעמיד נרות שבת בשני פמוטים עתיקים שקיבלה מסבתה ואז להדליקם."]
[null,null,1,false,null,"פמליה","חבורת בני לוויה","שחקן הקולנוע הגיע לפסטיבל הסרטים בליווי פמליה של עשרה אנשים."]
[null,null,1,false,null,"פעוט","ילד קטן","הפעוט התקשה להרדם ללא מוצץ."]
[null,null,1,false,null,"פער ","חלל ריק בין 2 דברים, הפרש גדול בין 2 ערכים ","הפער בין הציונים של יובל בשתי הבחינות האחרונות היה גדול."]
[null,null,2,false,null,"פקד","ביקר","עמית הוא נכד נהדר, הוא נוהג לפקוד את סבו לפחות פעמיים בשבוע."]
[null,null,2,false,null,"פקו ברכיו","רעדו לו הברכיים (מפחד)","משראה את האריה מתקרב לעברו, פקו ברכיו של המטייל."]
[null,null,1,false,null,"פְּקָק","סתם בפקק","לאחר שמזג לעצמו כוס קולה הוא פקק את הבקבוק על מנת שהגזים לא יברחו."]
[null,null,1,false,null,"פרם","התיר תפר בבגד","עמית פרמה את המכפלת שבמכנסיה לאחר שגבהה בעשרה סנטימטרים."]
[null,null,2,false,null,"פרע (3)","א. שילם ב. הפר","א. הוא פרע את חובו, וכעת הוא כבר לא חייב לאף אחד  ב. יוסי מתנהג כמו פורע חוק, הוא כל הזמן עובר עליו"]
[null,null,3,false,null,"פרקדן","שכוב על הגב","הוא שכב פרקדן במיטתו והאזין למוזיקה."]
[null,null,2,false,null,"פרקליט","עורך דין","הפרקליט ייצג את הנאשם בבית המשפט."]
[null,null,2,false,null,"פשט יד","קיבץ נדבות","לאחר שאיבד את עבודתו נאלץ טל לפשוט יד."]
[null,null,3,false,null,"פִּשְׁפָּשׁ","שער קטן בגדר או בחומה","הוא נכנס לבית דרך פשפש בחומה."]
[null,null,2,false,null,"פת","פרוסת לחם","לקחתי פת לחם ומרחתי עליה חמאה וריבה."]
[null,null,1,false,null,"פתי","אחד שמאמין לכל דבר, תמים","הוא מתנהג כפתי ומאמין מיד לכל דבר שאומרים לו."]
[null,null,2,false,null,"צדודית","פרופיל","הצלם צילם את צדודיתה של הנערה"]
[null,null,2,false,null,"צוהר","אשנב, חלון קטן","לאסיר היה רק צוהר קטן בחדרו, דרכו יכל להביט על חצר הכלא."]
[null,null,1,false,null,"צוותא ","יחד, בשיתוף פעולה","הם הקימו את האוהל בצוותא, כל אחד תרם את חלקו."]
[null,null,1,false,null,"צי","כלל כלי השיט של הצבא","צי האוניות של צבא ארצות הברית מונה מאות אוניות."]
[null,null,2,false,null,"ציר","א. מוט שעליו נע גלגל או דלת ב. מרכז פעילות  ג. דרך ראשית  ד. כאבי לידה  ה.תמצית מרק   ו.נציג בפרלמנט","א. ציר הדלת מאפשר את תנועתה  ב. ציר הפעילות של החברה נמצא בבנקוק ג. הציר הראשי נחסם בעקבות תאונת דרכים ד. האישה ההרה חשה צירים והובהלה מייד לבית החולים ה. ציר המרק היה טעים ו. ציר היא משרה דיפלומטית נחשקת"]
[null,null,2,false,null,"צלח","עבר במים ממקום למקום","במלחמת יום הכיפורים צלח צה\"ל את תעלת סואץ'."]
[null,null,1,false,null,"צמחיה","כלל הצמחים הצומחים במקום מסוים","צמחיית הכרמל מתאוששת מהשרפה שהתרחשה לפני מספר שנים."]
[null,null,2,false,null,"קב","רגל תותבת, משענת לצולע, קילל","לאחר ששבר את רגלו נאלץ הספורטאי להעזר בקביים."]
[null,null,2,false,null,"קבל","התלונן , טען נגד אדם אחר","דני החליט לקבול נגד מפקדו, לאחר שהאחרון נתן לו פקודה לא חוקית."]
[null,null,1,false,null,"קד","משתחווה השתחחות קלה","השחקנים קדו קידה בסוף ההצגה וזכו למחיאות כפיים מהקהל."]
[null,null,2,false,null,"קדר","יוצר כלי חרס","הקדר יצר כדי חרס מהממים באמצעות אבניים."]
[null,null,2,false,null,"קובלנה ","טענה, תלונה","החייל הגיש קובלנה כנגד מפקדו לאחר שהאחרון נתן לו פקודה בלתי חוקית."]
[null,null,3,false,null,"קווצה","אגודת שערות, תלתל","היא גזרה בטעות קווצת שערות משערה."]
[null,null,3,false,null,"קולמוס","עט ","יוסי כתב על דף נייר באמצעות קולמוס."]
[null,null,3,false,null,"קוף","חור של מחט","החוט הוכנס לקוף המחט."]
[null,null,1,false,null,"קור (עכביש)","חוט דקיק שהעכביש מפריש על מנת לתפוס חרקים","העכביש טווה קורים בעזרתם תפס לא מעט זבובים."]
[null,null,2,false,null,"קורטוב","קצת, מידה כלשהי של","לפי המתכון יש להוסיף לתבשיל רק קורטוב של סוכר, אחרת הוא ייצא מתוק מדי."]
[null,null,2,false,null,"קורת רוח","נחת, סיפוק","הוא חש קורת רוח בעקבות הצלחתו במבחן."]
[null,null,1,false,null,"קושיה","שאלה קשה","הוא שאל את אביו קושיה שאביו לא ידע לענות עליה."]
[null,null,2,false,null,"קושש","אסף עצים וזרדים","כל תלמידי כיתה א2 יצאו יחד לקושש עצים לקראת מדורת ל\"ג בעומר."]
[null,null,2,false,null,"קטם","חותך את הקצה (של ענף וכו')","דני קטם את קצהו של אחד מענפי העץ כיוון שהאחרון הסתיר את הנוף מלחלונו."]
[null,null,2,false,null,"קטן אמונה","ספקן","חבריי לעבודה תלו תקוות במנהל החדש, אבל אני – קטנת אמונה שכמותי – הערכתי שהמצב יישאר כשהיה."]
[null,null,2,false,null,"קטרג","הוציא ביקורת חריפה, האשים אחר","העיתונאי נהג לקטרג על מדיניות החוץ של הממשלה וטען כי היא חייבת להשתנות."]
[null,null,2,false,null,"קיטון","חדר קטן","הוא חי בקיטון, לא היה בו מקום לשום דבר נוסף מלבד מיטה."]
[null,null,2,false,null,"קל דעת","פזיז","הוא קל דעת, הוא אף פעם לא חושב מראש על מעשיו וזה פוגע בו לפעמים."]
[null,null,2,false,null,"קל תפיסה","בעל תפיסה מהירה","הוא קל תפיסה, כמה שניות מהרגע שהסברתי לו כיצד להכין ____ הוא כבר ידע לעשות זאת לבד."]
[null,null,2,false,null,"קמין","אח","הוא ישב ליד הקמין שבסלון ביתו כדי להתחמם."]
[null,null,2,false,null,"קמל","נובל","הפרח קמל מכיוון שלא השקו אותו במשך כמה ימים."]
[null,null,3,false,null,"קנטור","הכעסה, הרגזה על ידי הקנטה","רמי לא הפסיק לקנטר אז ביקשתי ממנו שיתרחק ממני כי איני במצב רוח. "]
[null,null,3,false,null,"קסת","צלוחית קטנה לדיו","בעבר נהגו לטבול נוצה בדיו הנמצא בקסת ובעזרתה כתבו."]
[null,null,2,false,null,"קפא על שמריו","היה שמרן, לא התקדם","הוא קפא על שמריו ולא השכיל להתפתח "]
[null,null,3,false,null,"קפץ את ידו","נהג בחוסר נדיבות, מיעט לתת","הוא קפץ את ידו ולא הסכים לחלוק את החטיף בין חבריו."]
[null,null,2,false,null,"קץ ","מאס","הוא קץ בהתנהגות הקלוקלת של בנו והחליט להענישו."]
[null,null,2,false,null,"קצב","הגדיר כמות מסויימת","המפקד קצב לחיילים חצי שעה לארוחת צהריים."]
[null,null,2,false,null,"קצף (פעולה)","כעס על","הוא קצף בעקבות מעשיו הלא נאותים של בנו."]
[null,null,2,false,null,"קצר רוח","חסר סבלנות","הוא היה קצר רוח במהלך כל הפגישה, הייתה תחושה שהוא ממש מחכה שהיא תסתיים."]
[null,null,2,false,null,"קרוא","מוזמן","הוא היה קרוא ולכן הוא בא."]
[null,null,2,false,null,"קרקע בתולה","אדמה שלא עיבדו אותה מעולם","קרקע זו היא קרקע בתולה, איש לא עיבד אותה מעולם."]
[null,null,3,false,null,"קרקש","מקדחה","קדחתי חור בקיר באמצעות קרקש."]
[null,null,3,false,null,"קִרְקֵשׁ (פעולה)","הרעיש","הוא קרקש במהלך השיעור עד שלבסוף נאלצה המורה להוציאו מהכיתה."]
[null,null,2,false,null,"קשה לב","אכזר, רשע","פרעה היה אדם קשה לב. "]
[null,null,2,false,null,"קשה עורף","עקשן","הוא ממש קשה עורף, כשהוא מקבל החלטה בלתי אפשרי להניא אותו ממנה."]
[null,null,2,false,null,"קשר כתרים","הלל, שיבח","הוא קשר כתרים לראשה של מיכל, ולא הפסיק להחמיא לה."]
[null,null,2,false,null,"קתדרה","במה קטנה שהנואם עומד עליה","הכומר עמד על הקתדרה, וממנה נאם לקהל המתפללים."]
[null,null,1,false,null,"רב-לשוני","אדם הדובר כמה שפות","רונן הוא אדם רב-לשוני, הוא דובר 6 שפות שונות."]
[null,null,1,false,null,"רב-פעלים","אדם שעשה הרבה דברים הראויים לשבח","שמעון פרס היה אדם רב-פעלים. הוא היה אחראי בין היתר על הקמת הכור בדימונה."]
[null,null,1,false,null,"רבבה","עשרת אלפים","בהפגנה השתתפה רבבת מפגינים."]
[null,null,2,false,null,"רדה","(1) הוציא דבש מהכוורת  (2) שלט ביד חזקה","(1) אבא שלי חזר מכוורת הדבורים שלנו והוא רדה דבש כל כך טעים!  (2) המלך נהג לרדות בנתיניו, כולם פחדו ממנו."]
[null,null,3,false,null,"רדיד","צעיף","גברת פפרוני לבשה על כתפיה רדיד צבעוני."]
[null,null,1,false,null,"רהוט","שוטף, ברור, ללא שגיאות","קריאתו של הקריין הייתה רהוטה."]
[null,null,2,false,null,"רוגטקה","קֶלַע מענף מסועף שרצועת גומי מחוברת לקצותיו ","דויד קלע אבן בראשו של גוליית באמצעות רוגטקה."]
[null,null,2,false,null,"רווי","ספג נוזלים עד גבול היכולת, מלא","הסחבה הזו רוויה לחלוטין, אתה צריך לסחוט אותה."]
[null,null,3,false,null,"רוויה","שובע, עודף ממשהו, בדרך כלל מנוזלים.","לאחר הטיול המאומץ, שתיתי עד שהגעתי לרוויה."]
[null,null,3,false,null,"רומח","כלי נשק קדום בצורת מוט שחוד מתכת מחובר לקצהו","בעבר היה נהוג לצוד בעלי חיים באמצעות רומח."]
[null,null,2,false,null,"רושף","מתיז ניצוצות, מלא חימה ותוכחה","האש רושפת לכל עבר."]
[null,null,2,false,null,"ריחיים","כלי לטחינת גרגירי תבואה לקֶמח המורכב משתי אבנים שטוחות ","בעבר היו משתמשים באבני ריחיים כדי לטחון גרגירי תבואה לקמח."]
[null,null,2,false,null,"ריפה את ידיו","החליש התלהבות של אחר","דניאל ריפה את ידיה של מיכל כשאמר לה שלדעתו התוכנית שלה צפויה להכשל."]
[null,null,1,false,null,"רכס","שורה של הרים המחוברים זה לזה","ראינו באופק את רכס הרי הרוקי."]
[null,null,1,false,null,"רמייה","רמאות","העתקה בבחינה היא מעשה רמייה."]
[null,null,2,false,null,"רפו ידיו","התייאש","הוא ניסה לשכנע את חברתו עד שלבסוף רפו ידיו."]
[null,null,2,false,null,"רפרפת","פודינג","הטבחית הגישה רפרפת טעימה לקינוח."]
[null,null,3,false,null,"רצען ","סנדלר, אדם העוסק בעבודות עור","הרצען מכר לגברת כהן חגורת עור ונעלי עור תואמות שהכין."]
[null,null,2,false,null,"רקח (תכניות)","תכנן תכניות","המתכנת החל לרקוח במוחו תוכנית לאפליקציה חדשה."]
[null,null,2,false,null,"רקח (תרופות)","הכין תרופות","אורי נהג לרקוח בביתו תכשירים קוסמטיים טבעיים."]
[null,null,2,false,null,"רקיק","עוגה שטוחה","האופה הכין רקיקים נהדרים."]
[null,null,3,false,null,"שָׂטַם","שנא","הוא שטם בליבו את שכנו לאחר שהאחרון היכה אותו. "]
[null,null,2,false,null,"שָׂם נַפְשׁוֹ בְּכַפּוֹ ","הסתכן","הכבאי האמיץ שם נפשו בכפו ונכנס אל הבניין הבוער במטרה להציל את הילדה שנלכדה בו."]
[null,null,2,false,null,"שאול","גהינום, תופת","אנשים רבים מאמינים שמי שעשה מעשים רעים בחייו יגיע אל השאול במותו."]
[null,null,2,false,null,"שאון","רעש, המולה","הם הקימו קול שאון."]
[null,null,3,false,null,"שאט נפש ","סלידה, מיאוס","הוא הביע שאט נפש מהתנהגותו הבלתי אחראית של העובד."]
[null,null,3,false,null,"שאר בשר","קרוב משפחה","מוטי הוא שאר בשר שלי, אנחנו בני אותה משפחה."]
[null,null,2,false,null,"שביס","כיסוי ראש","כל הנשים במגזר החרדי חייבות לכסות את שיערן באמצעות שביס."]
[null,null,2,false,null,"שבלוני","שגרתי, נדוש","צורת החשיבה שלו שבלונית, אין בה כל יצירתיות."]
[null,null,1,false,null,"שבק חיים","הלך לעולמו, מת","הרדיו הישן בבית סבתי שבק חיים ולכן זרקנו אותו לפח המחזור."]
[null,null,2,false,null,"שדה בור","שדה שאינו נעבד","סבי הוריש לי שדה בור, אני מתלבט אם הוא היה רוצה שאשאיר אותו כך או שאשתול בו עצים. "]
[null,null,1,false,null,"שובך","תיבה או מבנה קטן למגורי יונים","בניתי בחצר ביתי שובך ליונים."]
[null,null,1,false,null,"שוטט","הלך ממקום למקום ללא מטרה","יוסי שוטט ברחובות העיר הזרה"]
[null,null,2,false,null,"שומה עליו ","מחויב, התפקיד מוטל עליו","שומה עליו לספק לילדיו את כל צרכיהם."]
[null,null,3,false,null,"שור!","הבט! (שר= הביט)","יוסי ציווה על חברו אמיר \"שור!\" ולכן אמיר הביט."]
[null,null,3,false,null,"שורר","נוכח, קיים, נמצא","השקט שורר בחדר זה. "]
[null,null,2,false,null,"שזר","שילב זה בזה, קלע, ארג","אמא של מיכל שזרה בצמותיה חרוזים."]
[null,null,1,false,null,"שיח ושיג","דיבור, דיון","הם ניהלו שיח ושיג עד שהגיעו להסכמה משותפת."]
[null,null,2,false,null,"שיסה","הסית, שלח את.. לתקוף","הפושע האכזר שיסה את כלבו בעובר האורח התמים."]
[null,null,2,false,null,"שכך ","נחלש, נרגע","הוא נטל משכך כאבים, ומספר דקות לאחר מכן הכאב אכן שכך."]
[null,null,1,false,null,"שכתב","כתב מחדש, ניסח אחרת","התסריטאי לא היה מרוצה מהתסריט ולכן שכתב אותו."]
[null,null,2,false,null,"שלה","הוציא דבר מתוך מים","ארנקו של מוטי נפל לבריכה והוא נאלץ לשלות אותו מהמים."]
[null,null,1,false,null,"שלהב","עורר התלהבות","הזמר המפורסם הצליח לשלהב את הקהל לאורך כל ההופעה."]
[null,null,2,false,null,"שלט ברוחו","התנהג באיפוק","הילד שלט ברוחו למרות הקנטות של חבריו."]
[null,null,2,false,null,"שלשלת","שרשרת","האסיר היו קשור בשלשלאות כדי שלא יוכל להמלט."]
[null,null,2,false,null,"שם עט","שם שאדם משתמש בו עבור ספריו","הוא בחר לפרסם את ספרו הראשון תחת שם העט \"הקוסם\"."]
[null,null,1,false,null,"שמאי","שמקצועו הוא לקבוע ולהעריך שווים של דברים","תפקידו של שמאי להעריך ולקבוע את שווי הנכס."]
[null,null,1,false,null,"שמר לה אמונים","היה נאמן לה","דני שמר לרחל אמונים במהלך כל שנות נישואיהם ומעולם לא בגד בה."]
[null,null,2,false,null,"שני","סוג של צֶבע אדום ","בגינתה של רחל יש פרחים בצבע שני. "]
[null,null,3,false,null,"שעה","שם לב, הבחין, התייחס","הוא החליט לשעות לתחנוניה של חברתו והשאיל לה את רכבו."]
[null,null,2,false,null,"שערך","העריך מחדש","בעקבות המידע החדש שיש ברשותנו, יש לשערך את שווי המניה."]
[null,null,2,false,null,"שפיר","יפה, טוב, לא ממאיר","א. מראהו שפיר ואופיו נוח ולכן בנות רבות מתאהבות בו בקלות. ב. גידול שפיר הוא גידול מקומי, שאינו מתפשט לחלקי גוף אחרים."]
[null,null,2,false,null,"שפלות רוח","צניעות רבה, כניעה, התרפסות","בנוכחות מעסיקו חש העובד שִפלות רוח חוסר ביטחון."]
[null,null,2,false,null,"שצף","זרם בחוזקה","הנהר שצף וגעש העקבות הגשמים העזים, ולכן הרחצה בו הייתה אסורה."]
[null,null,1,false,null,"שרבוט","סרטוט קווים וסימנים חסרי משמעות, כתיבה מרושלת","הילדה הקטנה שרבטה על הדף קשקוש חסר משמעות."]
[null,null,2,false,null,"שרלטן","רַמַאי המתיַימר להיות מוּמחֶה","הוא טיפוס שרלטן. על כרטיס הביקור שלו כתוב שהוא דוקטור, למרות שאף פעם לא למד רפואה."]
[null,null,2,false,null,"שרר","היה, נכח","מהרגע שהמורה נכנס לכיתה שרר בה שקט מוחלט."]
[null,null,2,false,null,"תאב","משתוקק, רוצה מאוד","יש לי תאבה לא מוסברת להמבורגר אחרי כוס אחת של בירה."]
[null,null,2,false,null,"תאב בצע","חמדן","יוסי טיפוס תאב בצע,  הוא יהיה מוכן לעשות הכל בשביל כסף."]
[null,null,2,false,null,"תבן","קש","האכלנו בתבן את הסוסים בארווה."]
[null,null,2,false,null,"תגרן","רוכל , סוחר קטן","התמקחתי עם התגרן על מחיר התפוחים  עד שלבסוף הוא הסכים למכור לי אותם בהנחה משמעותית."]
[null,null,2,false,null,"תהה על קנקנו","חקר את טיבו של האחר","ראיינו את המועמד לתפקיד בנסיום לתהות על קנקנו."]
[null,null,2,false,null,"תוכחה ","דברי מוסר, דברי נזיפה","במהלך נאומו של יו\"ר האופוזציה נאמרו דברי תוכחה כלפי ראש הממשלה."]
[null,null,2,false,null,"תור!","חפש! (תר = חיפש)","המפקד ציווה על החייל: \"תור אחר הדיסקית שאיבדת ואל תחזור עד שלא תמצא אותה\"."]
[null,null,1,false,null,"תיעב","מאס ב","הוא ממש תיעב את התנהגותו השחצנית של עמיתו לעבודה."]
[null,null,1,false,null,"תירוש","מיץ ענבים שטרם תסס","הילדים אוהבים לשתות מיץ תירוש בסעודת שישי."]
[null,null,3,false,null,"תיתורה","שולי הכובע","לכובע קש יש תיתורה רחבה להצל מפני השמש."]
[null,null,2,false,null,"תלם","חריץ שנוצר ע\"י מחרשה","המחרשה יצרה תלמים באדמה."]
[null,null,1,false,null,"תם","הסתיים","המסע של מרקו פולו תם כשהוא הגיע אל נקודת הסיום."]
[null,null,2,false,null,"תמה ","מתפלא, מופתע","הוא תמה לגלות שהוריו הכינו לו מסיבת הפתעה."]
[null,null,2,false,null,"תמימות דעים","הסכמה גמורה","יש ביניהם תמימות דעים בנושא, שניהם מסכימים שאמיר הוא מורה מצוין."]
[null,null,3,false,null,"תסכית","יצירה המשודרת ברדיו","האזנתי לתסכית ששודר בתחנת הרדיו המקומית."]
[null,null,1,false,null,"תסמין","תופעה שחולה חש בה ומדווח עליה כסימן למחלתו","כשהחולה דיווח לרופא על התסמינים שיש לו - חום גבוה, צינון ושיעול - הרופא מייד ידע לתאים לו את הטיפול הנכון."]
[null,null,2,false,null,"תעה","הגיע בטעות למקום שלא התכוונת להגיע אליו, לא למצוא את הדרך הנכונה","קשה לתעות בדרך מאז שיש את אפליקציית ווייז."]
[null,null,1,false,null,"תער","סכין לגילוח בעלת להב המתקפּל לתוך נרתיק – בדרך כלל לשימוש סַפָּרים","הספר גילח את ראשו של הלקוח באמצעות תער."]
[null,null,2,false,null,"תפרחת","קבוצת פרחים הצומחים על ציר משותף","התפרחת של צמח הסוף מורכבת משני חלקים: בחלק העליון פרחים נקביים ובחלק התחתון פרחים זכריים."]
[null,null,2,false,null,"תר","טייל, סייר, חיפש אחר","יוסי תר אחר מתנה ליום ההולדת של בנו."]
[null,null,2,false,null,"תת-תקני","לא תקני","לשון המונית היא לשון תַת-תקנית."]
[null,null,2,false,null,"תתרן","חסר חוש הריח","דודי הוא תתרן, הוא לא מסוגל להריח שום דבר."]

{"sheet":"TestYourself","index":1,"n_rows":33,"n_cols":9,"rows_kept":33,"cut":false,"hidden":false,"merged":[[2,4,3,7]]}
[]
[]
[null,null,null,null,"בחנו את עצמכם"]
[]
[]
[]
[null,null,null,null,"כתבו כאן את פירושי המילים \n(כשתסיימו, בדקו את עצמכם)","מילה","פירוש","שימוש במשפט ","הערות שלי"]
[null,null,null,null,null,{"$f":"OFFSET(Vocabulary!F11:I710,D18,0,1,4)","v":"דן לכף זכות"},"שופט אדם או סיטואציה בצורה חיובית","אני מעדיפה לדון אותו לכף זכות כל עוד איני בטוחה שההאשמות נגדו נכונות.",0]
[null,null,null,null,null,{"$f":"OFFSET(Vocabulary!F11:I710,D19,0,1,4)","v":"סנוקרת"},"אגרוף","המתאגרף חטף סנוקרת מיריבו וצנח על הרצפה.",0]
[null,null,null,null,null,{"$f":"OFFSET(Vocabulary!F11:I710,D20,0,1,4)","v":"טלא"},"שם טלאי","יוסי ביקש מהחייט להטליא את החור במכנסיו.",0]
[null,null,null,null,null,{"$f":"OFFSET(Vocabulary!F11:I710,D21,0,1,4)","v":"נצר את לשונו, נצר את שפתיו"},"שתק","אני מעדיף לנצור את לשוני ולומר את שיש לי לומר בפורום המתאים",0]
[null,null,null,null,null,{"$f":"OFFSET(Vocabulary!F11:I710,D22,0,1,4)","v":"זיק"},"ניצוץ","ראיתי בעיניו זיק של תקווה: הוא עוד לא ויתר לגמרי.",0]
[null,null,null,null,null,{"$f":"OFFSET(Vocabulary!F11:I710,D23,0,1,4)","v":"מייגע"},"מעייף","הפגישה ארכה כשעתיים וחצי והייתה מייגעת מאוד, נדמה היה שהיא לא תסתיים לעולם",0]
[null,null,null,null,null,{"$f":"OFFSET(Vocabulary!F11:I710,D24,0,1,4)","v":"קמל"},"נובל","הפרח קמל מכיוון שלא השקו אותו במשך כמה ימים.",0]
[null,null,null,null,null,{"$f":"OFFSET(Vocabulary!F11:I710,D25,0,1,4)","v":"מסרגה"},"אחד מזוג מחטים ארוך המשמש לסריגה","הסבתא סרגה לנכדתה סוודר מצמר באמצעות זוג מסרגות.",0]
[null,null,null,null,null,{"$f":"OFFSET(Vocabulary!F11:I710,D26,0,1,4)","v":"עמד בניסיון"},"לא התפתה","הוא עמד בנסיון ולא התפתה לגנוב את האופניים שנותרו לא קשורות, למרות שהייתה לו הזדמנות לעשות זאת.",0]
[null,null,null,null,null,{"$f":"OFFSET(Vocabulary!F11:I710,D27,0,1,4)","v":"הכביר"},"הרבה (בעיקר מילים שלא לצורך)","אל תכביר במילים - עדיף לומר פחות ולעשות יותר.",0]
[null,null,{"$f":" RANDBETWEEN(0, 700)","v":190},141,{"$f":"RAND()","v":0.6617887702808426}]
[null,null,{"$f":" RANDBETWEEN(0, 700)","v":326},518,{"$f":"RAND()","v":0.33415534184711748}]
[null,null,{"$f":" RANDBETWEEN(0, 700)","v":418},287,{"$f":"RAND()","v":0.82067339609230738}]
[null,null,{"$f":" RANDBETWEEN(0, 700)","v":472},498,{"$f":"RAND()","v":0.46715016617103244}]
[null,null,{"$f":" RANDBETWEEN(0, 700)","v":672},245,{"$f":"RAND()","v":0.70295184666621469}]
[null,null,{"$f":" RANDBETWEEN(0, 700)","v":483},392,{"$f":"RAND()","v":0.18781204003050733}]
[null,null,{"$f":" RANDBETWEEN(0, 700)","v":186},604,{"$f":"RAND()","v":0.68880710091896891}]
[null,null,{"$f":" RANDBETWEEN(0, 700)","v":184},407,{"$f":"RAND()","v":0.43993391854463881}]
[null,null,{"$f":" RANDBETWEEN(0, 700)","v":356},542,{"$f":"RAND()","v":0.64487677428095469}]
[null,null,{"$f":" RANDBETWEEN(0, 700)","v":540},175,{"$f":"RAND()","v":0.57857267504589127}]
[null,null,"מספר רנדומלי של שורה מתוך הטבלה","העתקת הערך של המספר שמימין כדי שלא יוחלף כשכותבים את הפירושים","מספר רנדומלי בין 0 ל-1 משמש לערבוב הרשימה","פונקציית OFFSET שולפת שורה מסויימת מתוך הטבלה"]
[]
[]
[]
[]
[null,null,null,null,null,null,null,"Sub check_if_known()"]